Workbook

Sheet resumo
B2: RECEITAS | E2: DESPESAS | H2: DIFERENÇA | I2: RES. RECEITAS | J2: RESULTADO GERAL
B4: RECEITAS DE CUSTEIO | C4: =SUM(C6:C20) -> 5,663,338.07 | E4: DESPESAS DE CUSTEIO | F4: =SUM(F6:F17) -> 5,449,284.48 | H4: =C4-F4 -> 214,053.59 | I4: =Budget!C4-Budget!C6 -> 385,798.31 | J4: =H4+I4 -> 599,851.89
B6: RECEITAS SOCIAIS | C6: =D7+D8 -> 4,077,834.68 | E6: ADMINISTRATIVAS | F6: =SUM(G7:G12) -> 3,227,987.50 | H6: =C6-F6 -> 849,847.18
B7: CONTRIBUIÇÕES SOCIAIS | D7: =Budget!C9 -> 2,767,172.33 | E7: PESSOAL | G7: =Budget!C50+Budget!C62 -> 2,241,775.10
B8: RECEITAS DE SERVIÇOS DIVERSOS | D8: =Budget!C12 -> 1,310,662.35 | E8: OPERACIONAIS | G8: =Budget!C64+Budget!C66+Budget!C74+Budget!C80 -> 663,605.37
E9: MANUTENÇÃO | G9: =Budget!C159 -> 269,665.97
B10: =D7+SUM(Budget!#REF!) ->  | E10: IMPOSTOS E TAXAS | G10: =Budget!C165 -> 34,855.03
E11: ASSOCIAÇÕES | G11: =Budget!C103 -> 18,086.03
B13: DIRETORIA ESCOLA DE VELA - cursos | C13: =Budget!C21 -> 350,893.88 | E13: DIRETORIA ESCOLA DE VELA - cursos | F13: =Budget!C109 -> 410,662.01 | H13: -59,768.14
B14: DIR. ESCOLA DE VELA - acampamento | C14: =Budget!C23 -> 136,040.19 | E14: DIR. ESCOLA DE VELA - acampamento | F14: =Budget!C124 -> 82,178.99 | H14: 53,861.20
B15: DIRETORIA DE VELA | C15: =Budget!C32 -> 693,068.51 | E15: DIRETORIA DE VELA | F15: =Budget!C126 -> 1,398,629.22 | H15: =C15-F15 -> -705,560.71
E16: FUNDO PRÓ VELA | F16: =Budget!C169 -> 166,030.34 | H16: =C16-F16 -> -166,030.34
B17: DIRETORIA SOCIAL | C17: =Budget!C40 -> 104,453.77 | E17: DIRETORIA SOCIAL | F17: =Budget!C89 -> 163,796.42 | H17: =C17-F17 -> -59,342.65
B19: RECEITAS FINANCEIRAS | C19: =Budget!C25 -> 44,447.04
B20: PROJETOS INCENTIVADOS | C20: =Budget!C45 -> 256,600.00
B23: REAJUSTE NA MENSALIDADE | C23: 4.5%

Sheet Budget
B2: 1.06
B3: proposta 2024 - anual | C3: PROPOSTA 2025 | D3: 1.045 | E3: 2025-01-01 | F3: % | G3: 2025-02-01 | H3: % | I3: 2025-03-01 | J3: % | K3: 2025-04-01 | L3: % | M3: 2025-05-01 | N3: % | O3: 2025-06-01 | P3: % | Q3: 2025-07-01 | R3: % | S3: 2025-08-01 | T3: % | U3: 2025-09-01 | V3: % | W3: 2025-10-01 | X3: % | Y3: 2025-11-01 | Z3: % | AA3: 2025-12-01 | AB3: % | AC3: ACUMULADO
A4: RECEITAS | B4: R$ 5,089,266.56 | C4: R$ 6,049,136.37 | E4: =E6+E27 -> 0 | F4: =E4/$C4 -> 0% | G4: =G6+G27 -> 0 | H4: =G4/$C4 -> 0% | I4: =I6+I27 -> 0 | J4: =I4/$C4 -> 0% | K4: =K6+K27 -> 0 | L4: =K4/$C4 -> 0% | M4: =M6+M27 -> 0 | N4: =M4/$C4 -> 0% | O4: =O6+O27 -> 0 | P4: =O4/$C4 -> 0% | Q4: =Q6+Q27 -> 0 | R4: =Q4/$C4 -> 0% | S4: =S6+S27 -> 0 | T4: =S4/$C4 -> 0% | U4: =U6+U27 -> 0 | V4: =U4/$C4 -> 0% | W4: =W6+W27 -> 0 | X4: =W4/$C4 -> 0% | Y4: =Y6+Y27 -> 0 | Z4: =Y4/$C4 -> 0% | AA4: =AA6+AA27 -> 0 | AB4: =AA4/$C4 -> 0% | AC4: =E4+G4+I4+K4+M4+O4+Q4+S4+U4+W4+Y4+AA4 -> 0
A6: RECEITAS DE CUSTEIO | B6: R$ 4,869,266.56 | C6: R$ 5,663,338.07 | E6: =E8+E21+E23+E25+E32+E40 -> 0 | F6: =E6/C6 -> 0% | G6: =G8+G21+G23+G25+G32+G40 -> 0 | H6: =G6/$C6 -> 0% | I6: =I8+I21+I23+I25+I32+I40 -> 0 | J6: =I6/$C6 -> 0% | K6: =K8+K21+K23+K25+K32+K40 -> 0 | L6: =K6/$C6 -> 0% | M6: =M8+M21+M23+M25+M32+M40 -> 0 | N6: =M6/$C6 -> 0% | O6: =O8+O21+O23+O25+O32+O40 -> 0 | P6: =O6/$C6 -> 0% | Q6: =Q8+Q21+Q23+Q25+Q32+Q40 -> 0 | R6: =Q6/$C6 -> 0% | S6: =S8+S21+S23+S25+S32+S40 -> 0 | T6: =S6/$C6 -> 0% | U6: =U8+U21+U23+U25+U32+U40 -> 0 | V6: =U6/$C6 -> 0% | W6: =W8+W21+W23+W25+W32+W40 -> 0 | X6: =W6/$C6 -> 0% | Y6: =Y8+Y21+Y23+Y25+Y32+Y40 -> 0 | Z6: =Y6/$C6 -> 0% | AA6: =AA8+AA21+AA23+AA25+AA32+AA40 -> 0 | AB6: =AA6/$C6 -> 0% | AC6: =E6+G6+I6+K6+M6+O6+Q6+S6+U6+W6+Y6+AA6 -> 0
A8: CONTRIBUIÇÕES SOCIAIS | B8: R$ 3,693,483.25 | C8: R$ 4,077,834.68 | E8: =E9+E12 -> 0 | F8: =E8/C8 -> 0% | G8: =G9+G12 -> 0 | H8: =G8/$C8 -> 0% | I8: =I9+I12 -> 0 | J8: =I8/$C8 -> 0% | K8: =K9+K12 -> 0 | L8: =K8/$C8 -> 0% | M8: =M9+M12 -> 0 | N8: =M8/$C8 -> 0% | O8: =O9+O12 -> 0 | P8: =O8/$C8 -> 0% | Q8: =Q9+Q12 -> 0 | R8: =Q8/$C8 -> 0% | S8: =S9+S12 -> 0 | T8: =S8/$C8 -> 0% | U8: =U9+U12 -> 0 | V8: =U8/$C8 -> 0% | W8: =W9+W12 -> 0 | X8: =W8/$C8 -> 0% | Y8: =Y9+Y12 -> 0 | Z8: =Y8/$C8 -> 0% | AA8: =AA9+AA12 -> 0 | AB8: =AA8/$C8 -> 0% | AC8: =E8+G8+I8+K8+M8+O8+Q8+S8+U8+W8+Y8+AA8 -> 0
A9: RECEITAS SOCIAIS | B9: R$ 2,522,388.01 | C9: R$ 2,767,172.33 | E9: =SUM(E10:E11) -> 0 | F9: 0% | G9: =SUM(G10:G11) -> 0 | H9: 0% | I9: =SUM(I10:I11) -> 0 | J9: =I9/$C9 -> 0% | K9: =SUM(K10:K11) -> 0 | L9: =K9/$C9 -> 0% | M9: =SUM(M10:M11) -> 0 | N9: =M9/$C9 -> 0% | O9: =SUM(O10:O11) -> 0 | P9: =O9/$C9 -> 0% | Q9: =SUM(Q10:Q11) -> 0 | R9: =Q9/$C9 -> 0% | S9: =SUM(S10:S11) -> 0 | T9: =S9/$C9 -> 0% | U9: =SUM(U10:U11) -> 0 | V9: =U9/$C9 -> 0% | W9: =SUM(W10:W11) -> 0 | X9: =W9/$C9 -> 0% | Y9: =SUM(Y10:Y11) -> 0 | Z9: =Y9/$C9 -> 0% | AA9: =SUM(AA10:AA11) -> 0 | AB9: =AA9/$C9 -> 0% | AC9: 0
A10: Mensalidade de Sócios | B10: R$ 2,557,838.38 | C10: R$ 2,647,896.87 | F10: 0% | H10: 0% | J10: =I10/$C10 -> 0% | L10: =K10/$C10 -> 0% | N10: =M10/$C10 -> 0% | P10: =O10/$C10 -> 0% | R10: =Q10/$C10 -> 0% | T10: =S10/$C10 -> 0% | V10: =U10/$C10 -> 0% | X10: =W10/$C10 -> 0% | Z10: =Y10/$C10 -> 0% | AB10: =AA10/$C10 -> 0% | AC10: 0
A11: Mensalidade de Sócio Esportista | B11: R$ 125,553.12 | C11: R$ 119,275.46 | F11: 0% | H11: 0% | J11: =I11/$C11 -> 0% | L11: =K11/$C11 -> 0% | N11: =M11/$C11 -> 0% | P11: =O11/$C11 -> 0% | R11: =Q11/$C11 -> 0% | T11: =S11/$C11 -> 0% | V11: =U11/$C11 -> 0% | X11: =W11/$C11 -> 0% | Z11: =Y11/$C11 -> 0% | AB11: =AA11/$C11 -> 0% | AC11: 0
A12: RECEITAS DE SERVIÇOS DIVERSOS | B12: R$ 1,171,095.24 | C12: R$ 1,310,662.35 | E12: =SUM(E13:E20) -> 0 | F12: 0% | G12: =SUM(G13:G20) -> 0 | H12: 0% | I12: =SUM(I13:I20) -> 0 | J12: =I12/$C12 -> 0% | K12: =SUM(K13:K20) -> 0 | L12: =K12/$C12 -> 0% | M12: =SUM(M13:M20) -> 0 | N12: =M12/$C12 -> 0% | O12: =SUM(O13:O20) -> 0 | P12: =O12/$C12 -> 0% | Q12: =SUM(Q13:Q20) -> 0 | R12: =Q12/$C12 -> 0% | S12: =SUM(S13:S20) -> 0 | T12: =S12/$C12 -> 0% | U12: =SUM(U13:U20) -> 0 | V12: =U12/$C12 -> 0% | W12: =SUM(W13:W20) -> 0 | X12: =W12/$C12 -> 0% | Y12: =SUM(Y13:Y20) -> 0 | Z12: =Y12/$C12 -> 0% | AA12: =SUM(AA13:AA20) -> 0 | AB12: =AA12/$C12 -> 0% | AC12: 0
A13: Estadia de Barcos | B13: R$ 1,020,446.43 | C13: R$ 1,126,980.25 | F13: 0% | H13: 0% | J13: =I13/$C13 -> 0% | L13: =K13/$C13 -> 0% | N13: =M13/$C13 -> 0% | P13: =O13/$C13 -> 0% | R13: =Q13/$C13 -> 0% | T13: =S13/$C13 -> 0% | V13: =U13/$C13 -> 0% | X13: =W13/$C13 -> 0% | Z13: =Y13/$C13 -> 0% | AB13: =AA13/$C13 -> 0% | AC13: 0
A14: Taxa de Armário (Vestiários) | B14: R$ 19,165.64 | C14: R$ 19,744.93 | F14: 0% | H14: 0% | J14: =I14/$C14 -> 0% | L14: =K14/$C14 -> 0% | N14: =M14/$C14 -> 0% | P14: =O14/$C14 -> 0% | R14: =Q14/$C14 -> 0% | T14: =S14/$C14 -> 0% | V14: =U14/$C14 -> 0% | X14: =W14/$C14 -> 0% | Z14: =Y14/$C14 -> 0% | AB14: =AA14/$C14 -> 0% | AC14: 0
A15: Taxa de Armário (Hangar) | B15: R$ 15,566.94 | C15: R$ 17,399.95 | F15: 0% | H15: 0% | J15: =I15/$C15 -> 0% | L15: =K15/$C15 -> 0% | N15: =M15/$C15 -> 0% | P15: =O15/$C15 -> 0% | R15: =Q15/$C15 -> 0% | T15: =S15/$C15 -> 0% | V15: =U15/$C15 -> 0% | X15: =W15/$C15 -> 0% | Z15: =Y15/$C15 -> 0% | AB15: =AA15/$C15 -> 0% | AC15: 0
A16: Taxa de Bolão | B16: R$ 3,339.00 | C16: R$ 5,083.93 | F16: 0% | H16: 0% | J16: =I16/$C16 -> 0% | L16: =K16/$C16 -> 0% | N16: =M16/$C16 -> 0% | P16: =O16/$C16 -> 0% | R16: =Q16/$C16 -> 0% | T16: =S16/$C16 -> 0% | V16: =U16/$C16 -> 0% | X16: =W16/$C16 -> 0% | Z16: =Y16/$C16 -> 0% | AB16: =AA16/$C16 -> 0% | AC16: 0
A17: Concessão Restaurante | B17: R$ 97,000.00 | C17: R$ 123,960.00 | F17: 0% | H17: 0% | J17: =I17/$C17 -> 0% | L17: =K17/$C17 -> 0% | N17: =M17/$C17 -> 0% | P17: =O17/$C17 -> 0% | R17: =Q17/$C17 -> 0% | T17: =S17/$C17 -> 0% | V17: =U17/$C17 -> 0% | X17: =W17/$C17 -> 0% | Z17: =Y17/$C17 -> 0% | AB17: =AA17/$C17 -> 0% | AC17: 0
A18: Patrocinios | C18: 0 | J18: =I18/$C18 ->  | L18: =K18/$C18 ->  | N18: =M18/$C18 ->  | P18: =O18/$C18 ->  | R18: =Q18/$C18 ->  | T18: =S18/$C18 ->  | V18: =U18/$C18 ->  | X18: =W18/$C18 ->  | Z18: =Y18/$C18 ->  | AB18: =AA18/$C18 ->  | AC18: 0
A19: Uniformes e acessórios | B19: R$ 961.95 | C19: 0 | J19: =I19/$C19 ->  | L19: =K19/$C19 ->  | N19: =M19/$C19 ->  | P19: =O19/$C19 ->  | R19: =Q19/$C19 ->  | T19: =S19/$C19 ->  | V19: =U19/$C19 ->  | X19: =W19/$C19 ->  | Z19: =Y19/$C19 ->  | AB19: =AA19/$C19 ->  | AC19: 0
A20: Convites Sociais + (Parceiros) | B20: R$ 14,615.28 | C20: R$ 17,493.30 | F20: 0% | H20: 0% | J20: =I20/$C20 -> 0% | L20: =K20/$C20 -> 0% | N20: =M20/$C20 -> 0% | P20: =O20/$C20 -> 0% | R20: =Q20/$C20 -> 0% | T20: =S20/$C20 -> 0% | V20: =U20/$C20 -> 0% | X20: =W20/$C20 -> 0% | Z20: =Y20/$C20 -> 0% | AB20: =AA20/$C20 -> 0% | AC20: 0
A21: RECEITAS CURSO DE VELA | B21: R$ 589,000.00 | C21: R$ 350,893.88 | E21: =E22 -> 0 | F21: 0% | G21: =G22 -> 0 | H21: 0% | I21: =I22 -> 0 | J21: =I21/$C21 -> 0% | K21: =K22 -> 0 | L21: =K21/$C21 -> 0% | M21: =M22 -> 0 | N21: =M21/$C21 -> 0% | O21: =O22 -> 0 | P21: =O21/$C21 -> 0% | Q21: =Q22 -> 0 | R21: =Q21/$C21 -> 0% | S21: =S22 -> 0 | T21: =S21/$C21 -> 0% | U21: =U22 -> 0 | V21: =U21/$C21 -> 0% | W21: =W22 -> 0 | X21: =W21/$C21 -> 0% | Y21: =Y22 -> 0 | Z21: =Y21/$C21 -> 0% | AA21: =AA22 -> 0 | AB21: =AA21/$C21 -> 0% | AC21: 0
A22: Curso de vela (adulto, extra curricular, educação fisica, op) | B22: R$ 244,000.00 | C22: R$ 350,893.88 | F22: 0% | H22: 0% | J22: =I22/$C22 -> 0% | L22: =K22/$C22 -> 0% | N22: =M22/$C22 -> 0% | P22: =O22/$C22 -> 0% | R22: =Q22/$C22 -> 0% | T22: =S22/$C22 -> 0% | V22: =U22/$C22 -> 0% | X22: =W22/$C22 -> 0% | Z22: =Y22/$C22 -> 0% | AB22: =AA22/$C22 -> 0% | AC22: 0
A23: RECEITAS ACAMPAMENTO | C23: R$ 136,040.19 | E23: =E24 -> 0 | F23: 0% | G23: =G24 -> 0 | H23: 0% | I23: =I24 -> 0 | J23: =I23/$C23 -> 0% | K23: =K24 -> 0 | L23: =K23/$C23 -> 0% | M23: =M24 -> 0 | N23: =M23/$C23 -> 0% | O23: =O24 -> 0 | P23: =O23/$C23 -> 0% | Q23: =Q24 -> 0 | R23: =Q23/$C23 -> 0% | S23: =S24 -> 0 | T23: =S23/$C23 -> 0% | U23: =U24 -> 0 | V23: =U23/$C23 -> 0% | W23: =W24 -> 0 | X23: =W23/$C23 -> 0% | Y23: =Y24 -> 0 | Z23: =Y23/$C23 -> 0% | AA23: =AA24 -> 0 | AB23: =AA23/$C23 -> 0% | AC23: 0
A24: Acampamento | B24: R$ 204,000.00 | C24: R$ 136,040.19 | F24: 0% | H24: 0% | J24: =I24/$C24 -> 0% | L24: =K24/$C24 -> 0% | N24: =M24/$C24 -> 0% | P24: =O24/$C24 -> 0% | R24: =Q24/$C24 -> 0% | T24: =S24/$C24 -> 0% | V24: =U24/$C24 -> 0% | X24: =W24/$C24 -> 0% | Z24: =Y24/$C24 -> 0% | AB24: =AA24/$C24 -> 0% | AC24: 0
A25: RECEITAS FINANCEIRAS | B25: R$ 38,000.00 | C25: R$ 44,447.04 | E25: =E26 -> 0 | F25: 0% | G25: =G26 -> 0 | H25: 0% | I25: =I26 -> 0 | J25: =I25/$C25 -> 0% | K25: =K26 -> 0 | L25: =K25/$C25 -> 0% | M25: =M26 -> 0 | N25: =M25/$C25 -> 0% | O25: =O26 -> 0 | P25: =O25/$C25 -> 0% | Q25: =Q26 -> 0 | R25: =Q25/$C25 -> 0% | S25: =S26 -> 0 | T25: =S25/$C25 -> 0% | U25: =U26 -> 0 | V25: =U25/$C25 -> 0% | W25: =W26 -> 0 | X25: =W25/$C25 -> 0% | Y25: =Y26 -> 0 | Z25: =Y25/$C25 -> 0% | AA25: =AA26 -> 0 | AB25: =AA25/$C25 -> 0% | AC25: 0
A26: Receitas Financeiras | B26: R$ 38,000.00 | C26: R$ 44,447.04 | F26: 0% | H26: 0% | J26: =I26/$C26 -> 0% | L26: =K26/$C26 -> 0% | N26: =M26/$C26 -> 0% | P26: =O26/$C26 -> 0% | R26: =Q26/$C26 -> 0% | T26: =S26/$C26 -> 0% | V26: =U26/$C26 -> 0% | X26: =W26/$C26 -> 0% | Z26: =Y26/$C26 -> 0% | AB26: =AA26/$C26 -> 0% | AC26: 0
A27: RECEITAS EVENTUAIS | B27: R$ 220,000.00 | C27: R$ 385,798.31 | E27: =SUM(E28:E31) -> 0 | F27: 0% | G27: =SUM(G28:G31) -> 0 | H27: 0% | I27: =SUM(I28:I31) -> 0 | J27: =I27/$C27 -> 0% | K27: =SUM(K28:K31) -> 0 | L27: =K27/$C27 -> 0% | M27: =SUM(M28:M31) -> 0 | N27: =M27/$C27 -> 0% | O27: =SUM(O28:O31) -> 0 | P27: =O27/$C27 -> 0% | Q27: =SUM(Q28:Q31) -> 0 | R27: =Q27/$C27 -> 0% | S27: =SUM(S28:S31) -> 0 | T27: =S27/$C27 -> 0% | U27: =SUM(U28:U31) -> 0 | V27: =U27/$C27 -> 0% | W27: =SUM(W28:W31) -> 0 | X27: =W27/$C27 -> 0% | Y27: =SUM(Y28:Y31) -> 0 | Z27: =Y27/$C27 -> 0% | AA27: =SUM(AA28:AA31) -> 0 | AB27: =AA27/$C27 -> 0% | AC27: 0
A28: Tx transferência | B28: R$ 140,000.00 | C28: R$ 140,000.00 | F28: 0% | H28: 0% | J28: =I28/$C28 -> 0% | L28: =K28/$C28 -> 0% | N28: =M28/$C28 -> 0% | P28: =O28/$C28 -> 0% | R28: =Q28/$C28 -> 0% | T28: =S28/$C28 -> 0% | V28: =U28/$C28 -> 0% | X28: =W28/$C28 -> 0% | Z28: =Y28/$C28 -> 0% | AB28: =AA28/$C28 -> 0% | AC28: 0
A29: Título | B29: R$ 50,000.00 | C29: R$ 35,000.00 | F29: 0% | H29: 0% | J29: =I29/$C29 -> 0% | L29: =K29/$C29 -> 0% | N29: =M29/$C29 -> 0% | P29: =O29/$C29 -> 0% | R29: =Q29/$C29 -> 0% | T29: =S29/$C29 -> 0% | V29: =U29/$C29 -> 0% | X29: =W29/$C29 -> 0% | Z29: =Y29/$C29 -> 0% | AB29: =AA29/$C29 -> 0% | AC29: 0
A30: Aluguel sede , dependências , alojamentos e apartamentos | B30: R$ 30,000.00 | C30: R$ 90,798.31 | F30: 0% | H30: 0% | J30: =I30/$C30 -> 0% | L30: =K30/$C30 -> 0% | N30: =M30/$C30 -> 0% | P30: =O30/$C30 -> 0% | R30: =Q30/$C30 -> 0% | T30: =S30/$C30 -> 0% | V30: =U30/$C30 -> 0% | X30: =W30/$C30 -> 0% | Z30: =Y30/$C30 -> 0% | AB30: =AA30/$C30 -> 0% | AC30: 0
A31: Venda de imobilizado / doações/ receitas diversas | C31: R$ 120,000.00 | F31: 0% | H31: 0% | J31: =I31/$C31 -> 0% | L31: =K31/$C31 -> 0% | N31: =M31/$C31 -> 0% | P31: =O31/$C31 -> 0% | R31: =Q31/$C31 -> 0% | T31: =S31/$C31 -> 0% | V31: =U31/$C31 -> 0% | X31: =W31/$C31 -> 0% | Z31: =Y31/$C31 -> 0% | AB31: =AA31/$C31 -> 0% | AC31: 0
A32: RECEITAS DIRETORIA DE VELA | B32: R$ 443,655.68 | C32: R$ 693,068.51 | E32: =SUM(E33:E39) -> 0 | F32: 0% | G32: =SUM(G33:G39) -> 0 | H32: 0% | I32: =SUM(I33:I39) -> 0 | J32: =I32/$C32 -> 0% | K32: =SUM(K33:K39) -> 0 | L32: =K32/$C32 -> 0% | M32: =SUM(M33:M39) -> 0 | N32: =M32/$C32 -> 0% | O32: =SUM(O33:O39) -> 0 | P32: =O32/$C32 -> 0% | Q32: =SUM(Q33:Q39) -> 0 | R32: =Q32/$C32 -> 0% | S32: =SUM(S33:S39) -> 0 | T32: =S32/$C32 -> 0% | U32: =SUM(U33:U39) -> 0 | V32: =U32/$C32 -> 0% | W32: =SUM(W33:W39) -> 0 | X32: =W32/$C32 -> 0% | Y32: =SUM(Y33:Y39) -> 0 | Z32: =Y32/$C32 -> 0% | AA32: =SUM(AA33:AA39) -> 0 | AB32: =AA32/$C32 -> 0% | AC32: 0
A33: Eventos Náuticos | B33: R$ 14,824.60 | C33: R$ 45,529.95 | F33: 0% | H33: 0% | J33: =I33/$C33 -> 0% | L33: =K33/$C33 -> 0% | N33: =M33/$C33 -> 0% | P33: =O33/$C33 -> 0% | R33: =Q33/$C33 -> 0% | T33: =S33/$C33 -> 0% | V33: =U33/$C33 -> 0% | X33: =W33/$C33 -> 0% | Z33: =Y33/$C33 -> 0% | AB33: =AA33/$C33 -> 0% | AC33: 0
A34: Inscrições de regatas | B34: R$ 20,622.43 | C34: R$ 72,662.35 | F34: 0% | H34: 0% | J34: =I34/$C34 -> 0% | L34: =K34/$C34 -> 0% | N34: =M34/$C34 -> 0% | P34: =O34/$C34 -> 0% | R34: =Q34/$C34 -> 0% | T34: =S34/$C34 -> 0% | V34: =U34/$C34 -> 0% | X34: =W34/$C34 -> 0% | Z34: =Y34/$C34 -> 0% | AB34: =AA34/$C34 -> 0% | AC34: 0
A35: FEVESP - Patrocinio (juizes) | B35: R$ 23,166.30 | C35: R$ 15,000.00 | F35: 0% | H35: 0% | J35: =I35/$C35 -> 0% | L35: =K35/$C35 -> 0% | N35: =M35/$C35 -> 0% | P35: =O35/$C35 -> 0% | R35: =Q35/$C35 -> 0% | T35: =S35/$C35 -> 0% | V35: =U35/$C35 -> 0% | X35: =W35/$C35 -> 0% | Z35: =Y35/$C35 -> 0% | AB35: =AA35/$C35 -> 0% | AC35: 0
A36: Aluguel de barcos / eventos nauticos | B36: R$ 51,000.00 | C36: R$ 31,494.21 | F36: 0% | H36: 0% | J36: =I36/$C36 -> 0% | L36: =K36/$C36 -> 0% | N36: =M36/$C36 -> 0% | P36: =O36/$C36 -> 0% | R36: =Q36/$C36 -> 0% | T36: =S36/$C36 -> 0% | V36: =U36/$C36 -> 0% | X36: =W36/$C36 -> 0% | Z36: =Y36/$C36 -> 0% | AB36: =AA36/$C36 -> 0% | AC36: 0
A37: Acompanhamento técnico OP | B37: R$ 385,042.35 | C37: R$ 339,036.86 | F37: 0% | H37: 0% | J37: =I37/$C37 -> 0% | L37: =K37/$C37 -> 0% | N37: =M37/$C37 -> 0% | P37: =O37/$C37 -> 0% | R37: =Q37/$C37 -> 0% | T37: =S37/$C37 -> 0% | V37: =U37/$C37 -> 0% | X37: =W37/$C37 -> 0% | Z37: =Y37/$C37 -> 0% | AB37: =AA37/$C37 -> 0% | AC37: 0
A38: Acompanhamento técnico Laser | C38: R$ 141,761.02 | F38: 0% | H38: 0% | J38: =I38/$C38 -> 0% | L38: =K38/$C38 -> 0% | N38: =M38/$C38 -> 0% | P38: =O38/$C38 -> 0% | R38: =Q38/$C38 -> 0% | T38: =S38/$C38 -> 0% | V38: =U38/$C38 -> 0% | X38: =W38/$C38 -> 0% | Z38: =Y38/$C38 -> 0% | AB38: =AA38/$C38 -> 0% | AC38: 0
A39: Acompanhamento técnico 420 | C39: R$ 47,584.12 | F39: 0% | H39: 0% | J39: =I39/$C39 -> 0% | L39: =K39/$C39 -> 0% | N39: =M39/$C39 -> 0% | P39: =O39/$C39 -> 0% | R39: =Q39/$C39 -> 0% | T39: =S39/$C39 -> 0% | V39: =U39/$C39 -> 0% | X39: =W39/$C39 -> 0% | Z39: =Y39/$C39 -> 0% | AB39: =AA39/$C39 -> 0% | AC39: 0
A40: RECEITAS DIRETORIA SOCIAL | B40: R$ 105,127.62 | C40: R$ 104,453.77 | E40: =SUM(E41:E44) -> 0 | F40: 0% | G40: =SUM(G41:G44) -> 0 | H40: 0% | I40: =SUM(I41:I44) -> 0 | J40: =I40/$C40 -> 0% | K40: =SUM(K41:K44) -> 0 | L40: =K40/$C40 -> 0% | M40: =SUM(M41:M44) -> 0 | N40: =M40/$C40 -> 0% | O40: =SUM(O41:O44) -> 0 | P40: =O40/$C40 -> 0% | Q40: =SUM(Q41:Q44) -> 0 | R40: =Q40/$C40 -> 0% | S40: =SUM(S41:S44) -> 0 | T40: =S40/$C40 -> 0% | U40: =SUM(U41:U44) -> 0 | V40: =U40/$C40 -> 0% | W40: =SUM(W41:W44) -> 0 | X40: =W40/$C40 -> 0% | Y40: =SUM(Y41:Y44) -> 0 | Z40: =Y40/$C40 -> 0% | AA40: =SUM(AA41:AA44) -> 0 | AB40: =AA40/$C40 -> 0% | AC40: 0
A41: Festas Oktoberfest | B41: 0 | C41: R$ 815.10 | F41: 0% | H41: 0% | J41: =I41/$C41 -> 0% | L41: =K41/$C41 -> 0% | N41: =M41/$C41 -> 0% | P41: =O41/$C41 -> 0% | R41: =Q41/$C41 -> 0% | T41: =S41/$C41 -> 0% | V41: =U41/$C41 -> 0% | X41: =W41/$C41 -> 0% | Z41: =Y41/$C41 -> 0% | AB41: =AA41/$C41 -> 0% | AC41: 0
A42: Festa Flash Back | B42: R$ 28,826.92 | C42: R$ 20,000.00 | F42: 0% | H42: 0% | J42: =I42/$C42 -> 0% | L42: =K42/$C42 -> 0% | N42: =M42/$C42 -> 0% | P42: =O42/$C42 -> 0% | R42: =Q42/$C42 -> 0% | T42: =S42/$C42 -> 0% | V42: =U42/$C42 -> 0% | X42: =W42/$C42 -> 0% | Z42: =Y42/$C42 -> 0% | AB42: =AA42/$C42 -> 0% | AC42: 0
A43: Festas Junina | B43: R$ 74,300.70 | C43: R$ 80,503.67 | F43: 0% | H43: 0% | J43: =I43/$C43 -> 0% | L43: =K43/$C43 -> 0% | N43: =M43/$C43 -> 0% | P43: =O43/$C43 -> 0% | R43: =Q43/$C43 -> 0% | T43: =S43/$C43 -> 0% | V43: =U43/$C43 -> 0% | X43: =W43/$C43 -> 0% | Z43: =Y43/$C43 -> 0% | AB43: =AA43/$C43 -> 0% | AC43: 0
A44: Bazar YCSA | B44: R$ 2,000.00 | C44: R$ 3,135.00 | F44: 0% | H44: 0% | J44: =I44/$C44 -> 0% | L44: =K44/$C44 -> 0% | N44: =M44/$C44 -> 0% | P44: =O44/$C44 -> 0% | R44: =Q44/$C44 -> 0% | T44: =S44/$C44 -> 0% | V44: =U44/$C44 -> 0% | X44: =W44/$C44 -> 0% | Z44: =Y44/$C44 -> 0% | AB44: =AA44/$C44 -> 0% | AC44: 0
A45: PROJETOS INCENTIVADOS | C45: R$ 256,600.00 | E45: =SUM(E46:E47) -> 0 | F45: 0% | G45: =SUM(G46:G47) -> 0 | H45: 0% | I45: =SUM(I46:I47) -> 0 | J45: =I45/$C45 -> 0% | K45: =SUM(K46:K47) -> 0 | L45: =K45/$C45 -> 0% | M45: =SUM(M46:M47) -> 0 | N45: =M45/$C45 -> 0% | O45: =SUM(O46:O47) -> 0 | P45: =O45/$C45 -> 0% | Q45: =SUM(Q46:Q47) -> 0 | R45: =Q45/$C45 -> 0% | S45: =SUM(S46:S47) -> 0 | T45: =S45/$C45 -> 0% | U45: =SUM(U46:U47) -> 0 | V45: =U45/$C45 -> 0% | W45: =SUM(W46:W47) -> 0 | X45: =W45/$C45 -> 0% | Y45: =SUM(Y46:Y47) -> 0 | Z45: =Y45/$C45 -> 0% | AA45: =SUM(AA46:AA47) -> 0 | AB45: =AA45/$C45 -> 0% | AC45: 0
A46: CBC | C46: R$ 116,600.00 | F46: 0% | H46: 0% | J46: =I46/$C46 -> 0% | L46: =K46/$C46 -> 0% | N46: =M46/$C46 -> 0% | P46: =O46/$C46 -> 0% | R46: =Q46/$C46 -> 0% | T46: =S46/$C46 -> 0% | V46: =U46/$C46 -> 0% | X46: =W46/$C46 -> 0% | Z46: =Y46/$C46 -> 0% | AB46: =AA46/$C46 -> 0% | AC46: 0
A47: LEI DO INCENTIVO AO ESPORTE | C47: R$ 140,000.00 | F47: 0% | H47: 0% | J47: =I47/$C47 -> 0% | L47: =K47/$C47 -> 0% | N47: =M47/$C47 -> 0% | P47: =O47/$C47 -> 0% | R47: =Q47/$C47 -> 0% | T47: =S47/$C47 -> 0% | V47: =U47/$C47 -> 0% | X47: =W47/$C47 -> 0% | Z47: =Y47/$C47 -> 0% | AB47: =AA47/$C47 -> 0% | AC47: 0
A48: DESPESAS TOTAIS | B48: R$ 5,043,772.99 | C48: R$ 5,449,284.48 | E48: =E49+E88+E108+E126+E158+E165+E169 -> 0 | F48: 0% | G48: =G49+G88+G108+G126+G158+G165+G169 -> 0 | H48: 0% | I48: =I49+I88+I108+I126+I158+I165+I169 -> 0 | J48: =I48/$C48 -> 0% | K48: =K49+K88+K108+K126+K158+K165+K169 -> 0 | L48: =K48/$C48 -> 0% | M48: =M49+M88+M108+M126+M158+M165+M169 -> 0 | N48: =M48/$C48 -> 0% | O48: =O49+O88+O108+O126+O158+O165+O169 -> 0 | P48: =O48/$C48 -> 0% | Q48: =Q49+Q88+Q108+Q126+Q158+Q165+Q169 -> 0 | R48: =Q48/$C48 -> 0% | S48: =S49+S88+S108+S126+S158+S165+S169 -> 0 | T48: =S48/$C48 -> 0% | U48: =U49+U88+U108+U126+U158+U165+U169 -> 0 | V48: =U48/$C48 -> 0% | W48: =W49+W88+W108+W126+W158+W165+W169 -> 0 | X48: =W48/$C48 -> 0% | Y48: =Y49+Y88+Y108+Y126+Y158+Y165+Y169 -> 0 | Z48: =Y48/$C48 -> 0% | AA48: =AA49+AA88+AA108+AA126+AA158+AA165+AA169 -> 0 | AB48: =AA48/$C48 -> 0% | AC48: 0
A49: Diretor Secretário | B49: R$ 2,906,841.32 | C49: R$ 2,905,380.47 | E49: =E50+E62+E64+E66+E74+E80 -> 0 | F49: 0% | G49: =G50+G62+G64+G66+G74+G80 -> 0 | H49: 0% | I49: =I50+I62+I64+I66+I74+I80 -> 0 | J49: =I49/$C49 -> 0% | K49: =K50+K62+K64+K66+K74+K80 -> 0 | L49: =K49/$C49 -> 0% | M49: =M50+M62+M64+M66+M74+M80 -> 0 | N49: =M49/$C49 -> 0% | O49: =O50+O62+O64+O66+O74+O80 -> 0 | P49: =O49/$C49 -> 0% | Q49: =Q50+Q62+Q64+Q66+Q74+Q80 -> 0 | R49: =Q49/$C49 -> 0% | S49: =S50+S62+S64+S66+S74+S80 -> 0 | T49: =S49/$C49 -> 0% | U49: =U50+U62+U64+U66+U74+U80 -> 0 | V49: =U49/$C49 -> 0% | W49: =W50+W62+W64+W66+W74+W80 -> 0 | X49: =W49/$C49 -> 0% | Y49: =Y50+Y62+Y64+Y66+Y74+Y80 -> 0 | Z49: =Y49/$C49 -> 0% | AA49: =AA50+AA62+AA64+AA66+AA74+AA80 -> 0 | AB49: =AA49/$C49 -> 0% | AC49: 0
A50: Despesas com Pessoal | B50: R$ 1,666,312.53 | C50: R$ 1,291,775.10 | E50: =SUM(E51:E61) -> 0 | F50: 0% | G50: =SUM(G51:G61) -> 0 | H50: 0% | I50: =SUM(I51:I61) -> 0 | J50: =I50/$C50 -> 0% | K50: =SUM(K51:K61) -> 0 | L50: =K50/$C50 -> 0% | M50: =SUM(M51:M61) -> 0 | N50: =M50/$C50 -> 0% | O50: =SUM(O51:O61) -> 0 | P50: =O50/$C50 -> 0% | Q50: =SUM(Q51:Q61) -> 0 | R50: =Q50/$C50 -> 0% | S50: =SUM(S51:S61) -> 0 | T50: =S50/$C50 -> 0% | U50: =SUM(U51:U61) -> 0 | V50: =U50/$C50 -> 0% | W50: =SUM(W51:W61) -> 0 | X50: =W50/$C50 -> 0% | Y50: =SUM(Y51:Y61) -> 0 | Z50: =Y50/$C50 -> 0% | AA50: =SUM(AA51:AA61) -> 0 | AB50: =AA50/$C50 -> 0% | AC50: 0
A51: Salários (exceto Escola de Vela) | B51: R$ 936,000.00 | C51: R$ 600,619.35 | F51: 0% | H51: 0% | J51: =I51/$C51 -> 0% | L51: =K51/$C51 -> 0% | N51: =M51/$C51 -> 0% | P51: =O51/$C51 -> 0% | R51: =Q51/$C51 -> 0% | T51: =S51/$C51 -> 0% | V51: =U51/$C51 -> 0% | X51: =W51/$C51 -> 0% | Z51: =Y51/$C51 -> 0% | AB51: =AA51/$C51 -> 0% | AC51: 0
A52: Gratificação espontânea | B52: R$ 30,000.00 | C52: R$ 30,015.19 | F52: 0% | H52: 0% | J52: =I52/$C52 -> 0% | L52: =K52/$C52 -> 0% | N52: =M52/$C52 -> 0% | P52: =O52/$C52 -> 0% | R52: =Q52/$C52 -> 0% | T52: =S52/$C52 -> 0% | V52: =U52/$C52 -> 0% | X52: =W52/$C52 -> 0% | Z52: =Y52/$C52 -> 0% | AB52: =AA52/$C52 -> 0% | AC52: 0
A53: Encargos | B53: R$ 324,500.00 | C53: R$ 207,213.68 | F53: 0% | H53: 0% | J53: =I53/$C53 -> 0% | L53: =K53/$C53 -> 0% | N53: =M53/$C53 -> 0% | P53: =O53/$C53 -> 0% | R53: =Q53/$C53 -> 0% | T53: =S53/$C53 -> 0% | V53: =U53/$C53 -> 0% | X53: =W53/$C53 -> 0% | Z53: =Y53/$C53 -> 0% | AB53: =AA53/$C53 -> 0% | AC53: 0
A54: Rescisões Contratuais / Acordo | B54: R$ 30,000.00 | C54: R$ 150,000.00 | F54: 0% | H54: 0% | J54: =I54/$C54 -> 0% | L54: =K54/$C54 -> 0% | N54: =M54/$C54 -> 0% | P54: =O54/$C54 -> 0% | R54: =Q54/$C54 -> 0% | T54: =S54/$C54 -> 0% | V54: =U54/$C54 -> 0% | X54: =W54/$C54 -> 0% | Z54: =Y54/$C54 -> 0% | AB54: =AA54/$C54 -> 0% | AC54: 0
A55: Férias (1/3 + encargos) | B55: R$ 52,718.00 | C55: R$ 21,473.50 | F55: 0% | H55: 0% | J55: =I55/$C55 -> 0% | L55: =K55/$C55 -> 0% | N55: =M55/$C55 -> 0% | P55: =O55/$C55 -> 0% | R55: =Q55/$C55 -> 0% | T55: =S55/$C55 -> 0% | V55: =U55/$C55 -> 0% | X55: =W55/$C55 -> 0% | Z55: =Y55/$C55 -> 0% | AB55: =AA55/$C55 -> 0% | AC55: 0
A56: 13º salario + encargos | B56: R$ 94,328.00 | C56: R$ 67,319.42 | F56: 0% | H56: 0% | J56: =I56/$C56 -> 0% | L56: =K56/$C56 -> 0% | N56: =M56/$C56 -> 0% | P56: =O56/$C56 -> 0% | R56: =Q56/$C56 -> 0% | T56: =S56/$C56 -> 0% | V56: =U56/$C56 -> 0% | X56: =W56/$C56 -> 0% | Z56: =Y56/$C56 -> 0% | AB56: =AA56/$C56 -> 0% | AC56: 0
A57: Benefícios ( vale transp. + cesta básica ) | B57: R$ 30,661.51 | C57: R$ 27,456.96 | F57: 0% | H57: 0% | J57: =I57/$C57 -> 0% | L57: =K57/$C57 -> 0% | N57: =M57/$C57 -> 0% | P57: =O57/$C57 -> 0% | R57: =Q57/$C57 -> 0% | T57: =S57/$C57 -> 0% | V57: =U57/$C57 -> 0% | X57: =W57/$C57 -> 0% | Z57: =Y57/$C57 -> 0% | AB57: =AA57/$C57 -> 0% | AC57: 0
A58: Alimentação de funcionários | B58: R$ 93,641.06 | C58: R$ 89,911.80 | F58: 0% | H58: 0% | J58: =I58/$C58 -> 0% | L58: =K58/$C58 -> 0% | N58: =M58/$C58 -> 0% | P58: =O58/$C58 -> 0% | R58: =Q58/$C58 -> 0% | T58: =S58/$C58 -> 0% | V58: =U58/$C58 -> 0% | X58: =W58/$C58 -> 0% | Z58: =Y58/$C58 -> 0% | AB58: =AA58/$C58 -> 0% | AC58: 0
A59: Capacitação Profissional | B59: R$ 5,000.00 | C59: R$ 20,000.00 | F59: 0% | H59: 0% | J59: =I59/$C59 -> 0% | L59: =K59/$C59 -> 0% | N59: =M59/$C59 -> 0% | P59: =O59/$C59 -> 0% | R59: =Q59/$C59 -> 0% | T59: =S59/$C59 -> 0% | V59: =U59/$C59 -> 0% | X59: =W59/$C59 -> 0% | Z59: =Y59/$C59 -> 0% | AB59: =AA59/$C59 -> 0% | AC59: 0
A60: Exames médicos, uniformes, etc | B60: R$ 19,525.15 | C60: R$ 30,914.24 | F60: 0% | H60: 0% | J60: =I60/$C60 -> 0% | L60: =K60/$C60 -> 0% | N60: =M60/$C60 -> 0% | P60: =O60/$C60 -> 0% | R60: =Q60/$C60 -> 0% | T60: =S60/$C60 -> 0% | V60: =U60/$C60 -> 0% | X60: =W60/$C60 -> 0% | Z60: =Y60/$C60 -> 0% | AB60: =AA60/$C60 -> 0% | AC60: 0
A61: Assistência Médica | B61: R$ 49,938.81 | C61: R$ 46,850.98 | F61: 0% | H61: 0% | J61: =I61/$C61 -> 0% | L61: =K61/$C61 -> 0% | N61: =M61/$C61 -> 0% | P61: =O61/$C61 -> 0% | R61: =Q61/$C61 -> 0% | T61: =S61/$C61 -> 0% | V61: =U61/$C61 -> 0% | X61: =W61/$C61 -> 0% | Z61: =Y61/$C61 -> 0% | AB61: =AA61/$C61 -> 0% | AC61: 0
A62: Despesas com Pessoal - Terceirizado | B62: R$ 1,666,312.53 | C62: R$ 950,000.00 | E62: =E63 -> 0 | F62: 0% | G62: =G63 -> 0 | H62: 0% | I62: =I63 -> 0 | J62: =I62/$C62 -> 0% | K62: =K63 -> 0 | L62: =K62/$C62 -> 0% | M62: =M63 -> 0 | N62: =M62/$C62 -> 0% | O62: =O63 -> 0 | P62: =O62/$C62 -> 0% | Q62: =Q63 -> 0 | R62: =Q62/$C62 -> 0% | S62: =S63 -> 0 | T62: =S62/$C62 -> 0% | U62: =U63 -> 0 | V62: =U62/$C62 -> 0% | W62: =W63 -> 0 | X62: =W62/$C62 -> 0% | Y62: =Y63 -> 0 | Z62: =Y62/$C62 -> 0% | AA62: =AA63 -> 0 | AB62: =AA62/$C62 -> 0% | AC62: 0
A63: Funcionários terceirizados | C63: R$ 950,000.00 | F63: 0% | H63: 0% | J63: =I63/$C63 -> 0% | L63: =K63/$C63 -> 0% | N63: =M63/$C63 -> 0% | P63: =O63/$C63 -> 0% | R63: =Q63/$C63 -> 0% | T63: =S63/$C63 -> 0% | V63: =U63/$C63 -> 0% | X63: =W63/$C63 -> 0% | Z63: =Y63/$C63 -> 0% | AB63: =AA63/$C63 -> 0% | AC63: 0
A64: Seguros | B64: R$ 56,738.55 | C64: R$ 49,725.22 | E64: =E65 -> 0 | F64: 0% | G64: =G65 -> 0 | H64: 0% | I64: =I65 -> 0 | J64: =I64/$C64 -> 0% | K64: =K65 -> 0 | L64: =K64/$C64 -> 0% | M64: =M65 -> 0 | N64: =M64/$C64 -> 0% | O64: =O65 -> 0 | P64: =O64/$C64 -> 0% | Q64: =Q65 -> 0 | R64: =Q64/$C64 -> 0% | S64: =S65 -> 0 | T64: =S64/$C64 -> 0% | U64: =U65 -> 0 | V64: =U64/$C64 -> 0% | W64: =W65 -> 0 | X64: =W64/$C64 -> 0% | Y64: =Y65 -> 0 | Z64: =Y64/$C64 -> 0% | AA64: =AA65 -> 0 | AB64: =AA64/$C64 -> 0% | AC64: 0
A65: Seguros | B65: R$ 56,738.55 | C65: R$ 49,725.22 | F65: 0% | H65: 0% | J65: =I65/$C65 -> 0% | L65: =K65/$C65 -> 0% | N65: =M65/$C65 -> 0% | P65: =O65/$C65 -> 0% | R65: =Q65/$C65 -> 0% | T65: =S65/$C65 -> 0% | V65: =U65/$C65 -> 0% | X65: =W65/$C65 -> 0% | Z65: =Y65/$C65 -> 0% | AB65: =AA65/$C65 -> 0% | AC65: 0
A66: Consumo | B66: R$ 209,723.05 | C66: R$ 223,414.98 | E66: =SUM(E67:E73) -> 0 | F66: 0% | G66: =SUM(G67:G73) -> 0 | H66: 0% | I66: =SUM(I67:I73) -> 0 | J66: =I66/$C66 -> 0% | K66: =SUM(K67:K73) -> 0 | L66: =K66/$C66 -> 0% | M66: =SUM(M67:M73) -> 0 | N66: =M66/$C66 -> 0% | O66: =SUM(O67:O73) -> 0 | P66: =O66/$C66 -> 0% | Q66: =SUM(Q67:Q73) -> 0 | R66: =Q66/$C66 -> 0% | S66: =SUM(S67:S73) -> 0 | T66: =S66/$C66 -> 0% | U66: =SUM(U67:U73) -> 0 | V66: =U66/$C66 -> 0% | W66: =SUM(W67:W73) -> 0 | X66: =W66/$C66 -> 0% | Y66: =SUM(Y67:Y73) -> 0 | Z66: =Y66/$C66 -> 0% | AA66: =SUM(AA67:AA73) -> 0 | AB66: =AA66/$C66 -> 0% | AC66: 0
A67: Água e Esgoto | B67: R$ 100,877.09 | C67: R$ 107,523.76 | F67: 0% | H67: 0% | J67: =I67/$C67 -> 0% | L67: =K67/$C67 -> 0% | N67: =M67/$C67 -> 0% | P67: =O67/$C67 -> 0% | R67: =Q67/$C67 -> 0% | T67: =S67/$C67 -> 0% | V67: =U67/$C67 -> 0% | X67: =W67/$C67 -> 0% | Z67: =Y67/$C67 -> 0% | AB67: =AA67/$C67 -> 0% | AC67: 0
A68: Eletricidade | B68: R$ 15,592.13 | C68: R$ 36,837.85 | F68: 0% | H68: 0% | J68: =I68/$C68 -> 0% | L68: =K68/$C68 -> 0% | N68: =M68/$C68 -> 0% | P68: =O68/$C68 -> 0% | R68: =Q68/$C68 -> 0% | T68: =S68/$C68 -> 0% | V68: =U68/$C68 -> 0% | X68: =W68/$C68 -> 0% | Z68: =Y68/$C68 -> 0% | AB68: =AA68/$C68 -> 0% | AC68: 0
A69: Gas | B69: R$ 29,630.84 | C69: R$ 33,797.13 | F69: 0% | H69: 0% | J69: =I69/$C69 -> 0% | L69: =K69/$C69 -> 0% | N69: =M69/$C69 -> 0% | P69: =O69/$C69 -> 0% | R69: =Q69/$C69 -> 0% | T69: =S69/$C69 -> 0% | V69: =U69/$C69 -> 0% | X69: =W69/$C69 -> 0% | Z69: =Y69/$C69 -> 0% | AB69: =AA69/$C69 -> 0% | AC69: 0
A70: Telefone, Net, correio, cartório | B70: R$ 8,299.80 | C70: R$ 8,901.37 | F70: 0% | H70: 0% | J70: =I70/$C70 -> 0% | L70: =K70/$C70 -> 0% | N70: =M70/$C70 -> 0% | P70: =O70/$C70 -> 0% | R70: =Q70/$C70 -> 0% | T70: =S70/$C70 -> 0% | V70: =U70/$C70 -> 0% | X70: =W70/$C70 -> 0% | Z70: =Y70/$C70 -> 0% | AB70: =AA70/$C70 -> 0% | AC70: 0
A71: Material de escritório | B71: R$ 7,787.88 | C71: R$ 10,401.62 | F71: 0% | H71: 0% | J71: =I71/$C71 -> 0% | L71: =K71/$C71 -> 0% | N71: =M71/$C71 -> 0% | P71: =O71/$C71 -> 0% | R71: =Q71/$C71 -> 0% | T71: =S71/$C71 -> 0% | V71: =U71/$C71 -> 0% | X71: =W71/$C71 -> 0% | Z71: =Y71/$C71 -> 0% | AB71: =AA71/$C71 -> 0% | AC71: 0
A72: Material de consumo e limpeza | B72: R$ 45,591.85 | C72: R$ 25,490.29 | F72: =E72/C72 -> 0% | H72: =G72/$C72 -> 0% | J72: =I72/$C72 -> 0% | L72: =K72/$C72 -> 0% | N72: =M72/$C72 -> 0% | P72: =O72/$C72 -> 0% | R72: =Q72/$C72 -> 0% | T72: =S72/$C72 -> 0% | V72: =U72/$C72 -> 0% | X72: =W72/$C72 -> 0% | Z72: =Y72/$C72 -> 0% | AB72: =AA72/$C72 -> 0% | AC72: =E72+G72+I72+K72+M72+O72+Q72+S72+U72+W72+Y72+AA72 -> 0
A73: Mat. vestiário e enfermaria | B73: R$ 1,943.46 | C73: R$ 462.96 | F73: 0% | H73: 0% | J73: =I73/$C73 -> 0% | L73: =K73/$C73 -> 0% | N73: =M73/$C73 -> 0% | P73: =O73/$C73 -> 0% | R73: =Q73/$C73 -> 0% | T73: =S73/$C73 -> 0% | V73: =U73/$C73 -> 0% | X73: =W73/$C73 -> 0% | Z73: =Y73/$C73 -> 0% | AB73: =AA73/$C73 -> 0% | AC73: 0
A74: Serviços Terceirizados | B74: R$ 927,804.36 | C74: R$ 333,379.43 | E74: =SUM(E75:E79) -> 0 | F74: 0% | G74: =SUM(G75:G79) -> 0 | H74: 0% | I74: =SUM(I75:I79) -> 0 | J74: =I74/$C74 -> 0% | K74: =SUM(K75:K79) -> 0 | L74: =K74/$C74 -> 0% | M74: =SUM(M75:M79) -> 0 | N74: =M74/$C74 -> 0% | O74: =SUM(O75:O79) -> 0 | P74: =O74/$C74 -> 0% | Q74: =SUM(Q75:Q79) -> 0 | R74: =Q74/$C74 -> 0% | S74: =SUM(S75:S79) -> 0 | T74: =S74/$C74 -> 0% | U74: =SUM(U75:U79) -> 0 | V74: =U74/$C74 -> 0% | W74: =SUM(W75:W79) -> 0 | X74: =W74/$C74 -> 0% | Y74: =SUM(Y75:Y79) -> 0 | Z74: =Y74/$C74 -> 0% | AA74: =SUM(AA75:AA79) -> 0 | AB74: =AA74/$C74 -> 0% | AC74: 0
A75: Contabilidade | B75: R$ 73,903.92 | C75: R$ 70,829.26 | F75: 0% | H75: 0% | J75: =I75/$C75 -> 0% | L75: =K75/$C75 -> 0% | N75: =M75/$C75 -> 0% | P75: =O75/$C75 -> 0% | R75: =Q75/$C75 -> 0% | T75: =S75/$C75 -> 0% | V75: =U75/$C75 -> 0% | X75: =W75/$C75 -> 0% | Z75: =Y75/$C75 -> 0% | AB75: =AA75/$C75 -> 0% | AC75: 0
A76: Assessoria Jurídica | B76: R$ 15,000.00 | C76: R$ 36,806.66 | F76: 0% | H76: 0% | J76: =I76/$C76 -> 0% | L76: =K76/$C76 -> 0% | N76: =M76/$C76 -> 0% | P76: =O76/$C76 -> 0% | R76: =Q76/$C76 -> 0% | T76: =S76/$C76 -> 0% | V76: =U76/$C76 -> 0% | X76: =W76/$C76 -> 0% | Z76: =Y76/$C76 -> 0% | AB76: =AA76/$C76 -> 0% | AC76: 0
A77: Auditoria Contábil | B77: R$ 30,000.00 | C77: R$ 28,661.40 | F77: 0% | H77: 0% | J77: =I77/$C77 -> 0% | L77: =K77/$C77 -> 0% | N77: =M77/$C77 -> 0% | P77: =O77/$C77 -> 0% | R77: =Q77/$C77 -> 0% | T77: =S77/$C77 -> 0% | V77: =U77/$C77 -> 0% | X77: =W77/$C77 -> 0% | Z77: =Y77/$C77 -> 0% | AB77: =AA77/$C77 -> 0% | AC77: 0
A78: Salva Vidas | B78: 0 | C78: R$ 10,000.00 | F78: 0% | H78: 0% | J78: =I78/$C78 -> 0% | L78: =K78/$C78 -> 0% | N78: =M78/$C78 -> 0% | P78: =O78/$C78 -> 0% | R78: =Q78/$C78 -> 0% | T78: =S78/$C78 -> 0% | V78: =U78/$C78 -> 0% | X78: =W78/$C78 -> 0% | Z78: =Y78/$C78 -> 0% | AB78: =AA78/$C78 -> 0% | AC78: 0
A79: Outros (sistema /informática / site / serviços de terceiros) | B79: R$ 96,078.77 | C79: R$ 187,082.11 | F79: 0% | H79: 0% | J79: =I79/$C79 -> 0% | L79: =K79/$C79 -> 0% | N79: =M79/$C79 -> 0% | P79: =O79/$C79 -> 0% | R79: =Q79/$C79 -> 0% | T79: =S79/$C79 -> 0% | V79: =U79/$C79 -> 0% | X79: =W79/$C79 -> 0% | Z79: =Y79/$C79 -> 0% | AB79: =AA79/$C79 -> 0% | AC79: 0
A80: Outras Despesas Operacionais | B80: R$ 46,262.83 | C80: R$ 57,085.74 | E80: =SUM(E81:E87) -> 0 | F80: 0% | G80: =SUM(G81:G87) -> 0 | H80: 0% | I80: =SUM(I81:I87) -> 0 | J80: =I80/$C80 -> 0% | K80: =SUM(K81:K87) -> 0 | L80: =K80/$C80 -> 0% | M80: =SUM(M81:M87) -> 0 | N80: =M80/$C80 -> 0% | O80: =SUM(O81:O87) -> 0 | P80: =O80/$C80 -> 0% | Q80: =SUM(Q81:Q87) -> 0 | R80: =Q80/$C80 -> 0% | S80: =SUM(S81:S87) -> 0 | T80: =S80/$C80 -> 0% | U80: =SUM(U81:U87) -> 0 | V80: =U80/$C80 -> 0% | W80: =SUM(W81:W87) -> 0 | X80: =W80/$C80 -> 0% | Y80: =SUM(Y81:Y87) -> 0 | Z80: =Y80/$C80 -> 0% | AA80: =SUM(AA81:AA87) -> 0 | AB80: =AA80/$C80 -> 0% | AC80: 0
A81: Conduções, viagens, cópias | B81: R$ 1,000.00 | C81: R$ 181.98 | F81: 0% | H81: 0% | J81: =I81/$C81 -> 0% | L81: =K81/$C81 -> 0% | N81: =M81/$C81 -> 0% | P81: =O81/$C81 -> 0% | R81: =Q81/$C81 -> 0% | T81: =S81/$C81 -> 0% | V81: =U81/$C81 -> 0% | X81: =W81/$C81 -> 0% | Z81: =Y81/$C81 -> 0% | AB81: =AA81/$C81 -> 0% | AC81: 0
A82: Marketing (impressos diversos) | B82: R$ 5,000.00 | C82: R$ 3,520.01 | F82: 0% | H82: 0% | J82: =I82/$C82 -> 0% | L82: =K82/$C82 -> 0% | N82: =M82/$C82 -> 0% | P82: =O82/$C82 -> 0% | R82: =Q82/$C82 -> 0% | T82: =S82/$C82 -> 0% | V82: =U82/$C82 -> 0% | X82: =W82/$C82 -> 0% | Z82: =Y82/$C82 -> 0% | AB82: =AA82/$C82 -> 0% | AC82: 0
A83: Despesas Gerais (Lanches e refeições) | B83: R$ 3,138.64 | C83: R$ 6,105.17 | F83: 0% | H83: 0% | J83: =I83/$C83 -> 0% | L83: =K83/$C83 -> 0% | N83: =M83/$C83 -> 0% | P83: =O83/$C83 -> 0% | R83: =Q83/$C83 -> 0% | T83: =S83/$C83 -> 0% | V83: =U83/$C83 -> 0% | X83: =W83/$C83 -> 0% | Z83: =Y83/$C83 -> 0% | AB83: =AA83/$C83 -> 0% | AC83: 0
A84: Despesa de deslocamento, motoboy | B84: R$ 3,211.69 | C84: R$ 2,055.10 | F84: 0% | H84: 0% | J84: =I84/$C84 -> 0% | L84: =K84/$C84 -> 0% | N84: =M84/$C84 -> 0% | P84: =O84/$C84 -> 0% | R84: =Q84/$C84 -> 0% | T84: =S84/$C84 -> 0% | V84: =U84/$C84 -> 0% | X84: =W84/$C84 -> 0% | Z84: =Y84/$C84 -> 0% | AB84: =AA84/$C84 -> 0% | AC84: 0
A85: Compra de pequenos bens | B85: R$ 15,000.00 | C85: R$ 29,548.49 | F85: 0% | H85: 0% | J85: =I85/$C85 -> 0% | L85: =K85/$C85 -> 0% | N85: =M85/$C85 -> 0% | P85: =O85/$C85 -> 0% | R85: =Q85/$C85 -> 0% | T85: =S85/$C85 -> 0% | V85: =U85/$C85 -> 0% | X85: =W85/$C85 -> 0% | Z85: =Y85/$C85 -> 0% | AB85: =AA85/$C85 -> 0% | AC85: 0
A86: Outros (dedetização/headhunter,etc) | B86: R$ 13,912.50 | C86: R$ 15,675.00 | F86: 0% | H86: 0% | J86: =I86/$C86 -> 0% | L86: =K86/$C86 -> 0% | N86: =M86/$C86 -> 0% | P86: =O86/$C86 -> 0% | R86: =Q86/$C86 -> 0% | T86: =S86/$C86 -> 0% | V86: =U86/$C86 -> 0% | X86: =W86/$C86 -> 0% | Z86: =Y86/$C86 -> 0% | AB86: =AA86/$C86 -> 0% | AC86: 0
A87: Uniformes e Acessórios para venda | B87: R$ 5,000.00 | J87: =I87/$C87 ->  | L87: =K87/$C87 ->  | N87: =M87/$C87 ->  | P87: =O87/$C87 ->  | R87: =Q87/$C87 ->  | T87: =S87/$C87 ->  | V87: =U87/$C87 ->  | X87: =W87/$C87 ->  | Z87: =Y87/$C87 ->  | AB87: =AA87/$C87 ->  | AC87: 0
A88: Diretoria Social | B88: R$ 205,000.00 | C88: R$ 181,882.45 | E88: =E89+E103 -> 0 | F88: 0% | G88: =G89+G103 -> 0 | H88: 0% | I88: =I89+I103 -> 0 | J88: =I88/$C88 -> 0% | K88: =K89+K103 -> 0 | L88: =K88/$C88 -> 0% | M88: =M89+M103 -> 0 | N88: =M88/$C88 -> 0% | O88: =O89+O103 -> 0 | P88: =O88/$C88 -> 0% | Q88: =Q89+Q103 -> 0 | R88: =Q88/$C88 -> 0% | S88: =S89+S103 -> 0 | T88: =S88/$C88 -> 0% | U88: =U89+U103 -> 0 | V88: =U88/$C88 -> 0% | W88: =W89+W103 -> 0 | X88: =W88/$C88 -> 0% | Y88: =Y89+Y103 -> 0 | Z88: =Y88/$C88 -> 0% | AA88: =AA89+AA103 -> 0 | AB88: =AA88/$C88 -> 0% | AC88: 0
A89: Festas e Eventos | B89: R$ 205,000.00 | C89: R$ 163,796.42 | E89: =SUM(E90:E102) -> 0 | F89: 0% | G89: =SUM(G90:G102) -> 0 | H89: 0% | I89: =SUM(I90:I102) -> 0 | J89: =I89/$C89 -> 0% | K89: =SUM(K90:K102) -> 0 | L89: =K89/$C89 -> 0% | M89: =SUM(M90:M102) -> 0 | N89: =M89/$C89 -> 0% | O89: =SUM(O90:O102) -> 0 | P89: =O89/$C89 -> 0% | Q89: =SUM(Q90:Q102) -> 0 | R89: =Q89/$C89 -> 0% | S89: =SUM(S90:S102) -> 0 | T89: =S89/$C89 -> 0% | U89: =SUM(U90:U102) -> 0 | V89: =U89/$C89 -> 0% | W89: =SUM(W90:W102) -> 0 | X89: =W89/$C89 -> 0% | Y89: =SUM(Y90:Y102) -> 0 | Z89: =Y89/$C89 -> 0% | AA89: =SUM(AA90:AA102) -> 0 | AB89: =AA89/$C89 -> 0% | AC89: 0
A90: Festa Junina | B90: R$ 75,000.00 | C90: R$ 74,601.38 | F90: 0% | H90: 0% | J90: =I90/$C90 -> 0% | L90: =K90/$C90 -> 0% | N90: =M90/$C90 -> 0% | P90: =O90/$C90 -> 0% | R90: =Q90/$C90 -> 0% | T90: =S90/$C90 -> 0% | V90: =U90/$C90 -> 0% | X90: =W90/$C90 -> 0% | Z90: =Y90/$C90 -> 0% | AB90: =AA90/$C90 -> 0% | AC90: 0
A91: Oktoberfest | B91: R$ 15,000.00 | C91: R$ 22,195.04 | F91: 0% | H91: 0% | J91: =I91/$C91 -> 0% | L91: =K91/$C91 -> 0% | N91: =M91/$C91 -> 0% | P91: =O91/$C91 -> 0% | R91: =Q91/$C91 -> 0% | T91: =S91/$C91 -> 0% | V91: =U91/$C91 -> 0% | X91: =W91/$C91 -> 0% | Z91: =Y91/$C91 -> 0% | AB91: =AA91/$C91 -> 0% | AC91: 0
A92: Bazar de Natal | B92: R$ 5,000.00 | C92: R$ 2,500.00 | F92: 0% | H92: 0% | J92: =I92/$C92 -> 0% | L92: =K92/$C92 -> 0% | N92: =M92/$C92 -> 0% | P92: =O92/$C92 -> 0% | R92: =Q92/$C92 -> 0% | T92: =S92/$C92 -> 0% | V92: =U92/$C92 -> 0% | X92: =W92/$C92 -> 0% | Z92: =Y92/$C92 -> 0% | AB92: =AA92/$C92 -> 0% | AC92: 0
A93: Homenagens | B93: R$ 16,500.00 | C93: R$ 10,000.00 | F93: 0% | H93: 0% | J93: =I93/$C93 -> 0% | L93: =K93/$C93 -> 0% | N93: =M93/$C93 -> 0% | P93: =O93/$C93 -> 0% | R93: =Q93/$C93 -> 0% | T93: =S93/$C93 -> 0% | V93: =U93/$C93 -> 0% | X93: =W93/$C93 -> 0% | Z93: =Y93/$C93 -> 0% | AB93: =AA93/$C93 -> 0% | AC93: 0
A94: Jantar do Comodoro | B94: R$ 33,000.00 | C94: R$ 20,000.00 | F94: 0% | H94: 0% | J94: =I94/$C94 -> 0% | L94: =K94/$C94 -> 0% | N94: =M94/$C94 -> 0% | P94: =O94/$C94 -> 0% | R94: =Q94/$C94 -> 0% | T94: =S94/$C94 -> 0% | V94: =U94/$C94 -> 0% | X94: =W94/$C94 -> 0% | Z94: =Y94/$C94 -> 0% | AB94: =AA94/$C94 -> 0% | AC94: 0
A95: Páscoa | B95: R$ 2,000.00 | C95: R$ 2,000.00 | F95: 0% | H95: 0% | J95: =I95/$C95 -> 0% | L95: =K95/$C95 -> 0% | N95: =M95/$C95 -> 0% | P95: =O95/$C95 -> 0% | R95: =Q95/$C95 -> 0% | T95: =S95/$C95 -> 0% | V95: =U95/$C95 -> 0% | X95: =W95/$C95 -> 0% | Z95: =Y95/$C95 -> 0% | AB95: =AA95/$C95 -> 0% | AC95: 0
A96: Dia das Crianças | B96: R$ 3,000.00 | C96: R$ 2,000.00 | F96: 0% | H96: 0% | J96: =I96/$C96 -> 0% | L96: =K96/$C96 -> 0% | N96: =M96/$C96 -> 0% | P96: =O96/$C96 -> 0% | R96: =Q96/$C96 -> 0% | T96: =S96/$C96 -> 0% | V96: =U96/$C96 -> 0% | X96: =W96/$C96 -> 0% | Z96: =Y96/$C96 -> 0% | AB96: =AA96/$C96 -> 0% | AC96: 0
A97: Carnaval | B97: R$ 1,500.00 | C97: R$ 1,500.00 | F97: 0% | H97: 0% | J97: =I97/$C97 -> 0% | L97: =K97/$C97 -> 0% | N97: =M97/$C97 -> 0% | P97: =O97/$C97 -> 0% | R97: =Q97/$C97 -> 0% | T97: =S97/$C97 -> 0% | V97: =U97/$C97 -> 0% | X97: =W97/$C97 -> 0% | Z97: =Y97/$C97 -> 0% | AB97: =AA97/$C97 -> 0% | AC97: 0
A98: Dia das mães | B98: R$ 2,000.00 | C98: R$ 2,000.00 | F98: 0% | H98: 0% | J98: =I98/$C98 -> 0% | L98: =K98/$C98 -> 0% | N98: =M98/$C98 -> 0% | P98: =O98/$C98 -> 0% | R98: =Q98/$C98 -> 0% | T98: =S98/$C98 -> 0% | V98: =U98/$C98 -> 0% | X98: =W98/$C98 -> 0% | Z98: =Y98/$C98 -> 0% | AB98: =AA98/$C98 -> 0% | AC98: 0
A99: Dia dos pais | B99: R$ 2,000.00 | C99: R$ 2,000.00 | F99: 0% | H99: 0% | J99: =I99/$C99 -> 0% | L99: =K99/$C99 -> 0% | N99: =M99/$C99 -> 0% | P99: =O99/$C99 -> 0% | R99: =Q99/$C99 -> 0% | T99: =S99/$C99 -> 0% | V99: =U99/$C99 -> 0% | X99: =W99/$C99 -> 0% | Z99: =Y99/$C99 -> 0% | AB99: =AA99/$C99 -> 0% | AC99: 0
A100: Natal | B100: R$ 5,000.00 | C100: R$ 5,000.00 | F100: 0% | H100: 0% | J100: =I100/$C100 -> 0% | L100: =K100/$C100 -> 0% | N100: =M100/$C100 -> 0% | P100: =O100/$C100 -> 0% | R100: =Q100/$C100 -> 0% | T100: =S100/$C100 -> 0% | V100: =U100/$C100 -> 0% | X100: =W100/$C100 -> 0% | Z100: =Y100/$C100 -> 0% | AB100: =AA100/$C100 -> 0% | AC100: 0
A101: Eventos Diversos | B101: R$ 5,000.00 | C101: R$ 2,000.00 | F101: 0% | H101: 0% | J101: =I101/$C101 -> 0% | L101: =K101/$C101 -> 0% | N101: =M101/$C101 -> 0% | P101: =O101/$C101 -> 0% | R101: =Q101/$C101 -> 0% | T101: =S101/$C101 -> 0% | V101: =U101/$C101 -> 0% | X101: =W101/$C101 -> 0% | Z101: =Y101/$C101 -> 0% | AB101: =AA101/$C101 -> 0% | AC101: 0
A102: Flash Back | B102: R$ 40,000.00 | C102: R$ 18,000.00 | F102: 0% | H102: 0% | J102: =I102/$C102 -> 0% | L102: =K102/$C102 -> 0% | N102: =M102/$C102 -> 0% | P102: =O102/$C102 -> 0% | R102: =Q102/$C102 -> 0% | T102: =S102/$C102 -> 0% | V102: =U102/$C102 -> 0% | X102: =W102/$C102 -> 0% | Z102: =Y102/$C102 -> 0% | AB102: =AA102/$C102 -> 0% | AC102: 0
A103: Outras Desp. Sociais | B103: R$ 96,846.12 | C103: R$ 18,086.03 | E103: =SUM(E104:E107) -> 0 | F103: 0% | G103: =SUM(G104:G107) -> 0 | H103: 0% | I103: =SUM(I104:I107) -> 0 | J103: =I103/$C103 -> 0% | K103: =SUM(K104:K107) -> 0 | L103: =K103/$C103 -> 0% | M103: =SUM(M104:M107) -> 0 | N103: =M103/$C103 -> 0% | O103: =SUM(O104:O107) -> 0 | P103: =O103/$C103 -> 0% | Q103: =SUM(Q104:Q107) -> 0 | R103: =Q103/$C103 -> 0% | S103: =SUM(S104:S107) -> 0 | T103: =S103/$C103 -> 0% | U103: =SUM(U104:U107) -> 0 | V103: =U103/$C103 -> 0% | W103: =SUM(W104:W107) -> 0 | X103: =W103/$C103 -> 0% | Y103: =SUM(Y104:Y107) -> 0 | Z103: =Y103/$C103 -> 0% | AA103: =SUM(AA104:AA107) -> 0 | AB103: =AA103/$C103 -> 0% | AC103: 0
A104: Sindiclube | B104: R$ 7,765.96 | C104: R$ 6,199.30 | F104: 0% | H104: 0% | J104: =I104/$C104 -> 0% | L104: =K104/$C104 -> 0% | N104: =M104/$C104 -> 0% | P104: =O104/$C104 -> 0% | R104: =Q104/$C104 -> 0% | T104: =S104/$C104 -> 0% | V104: =U104/$C104 -> 0% | X104: =W104/$C104 -> 0% | Z104: =Y104/$C104 -> 0% | AB104: =AA104/$C104 -> 0% | AC104: 0
A105: Associação Nossa Guarapiranga | C105: R$ 2,351.25 | F105: 0% | H105: 0% | J105: =I105/$C105 -> 0% | L105: =K105/$C105 -> 0% | N105: =M105/$C105 -> 0% | P105: =O105/$C105 -> 0% | R105: =Q105/$C105 -> 0% | T105: =S105/$C105 -> 0% | V105: =U105/$C105 -> 0% | X105: =W105/$C105 -> 0% | Z105: =Y105/$C105 -> 0% | AB105: =AA105/$C105 -> 0% | AC105: 0
A106: Sociedade amigos da Marinha | C106: R$ 2,006.40 | F106: 0% | H106: 0% | J106: =I106/$C106 -> 0% | L106: =K106/$C106 -> 0% | N106: =M106/$C106 -> 0% | P106: =O106/$C106 -> 0% | R106: =Q106/$C106 -> 0% | T106: =S106/$C106 -> 0% | V106: =U106/$C106 -> 0% | X106: =W106/$C106 -> 0% | Z106: =Y106/$C106 -> 0% | AB106: =AA106/$C106 -> 0% | AC106: 0
A107: Acesc | C107: R$ 7,529.08 | F107: 0% | H107: 0% | J107: =I107/$C107 -> 0% | L107: =K107/$C107 -> 0% | N107: =M107/$C107 -> 0% | P107: =O107/$C107 -> 0% | R107: =Q107/$C107 -> 0% | T107: =S107/$C107 -> 0% | V107: =U107/$C107 -> 0% | X107: =W107/$C107 -> 0% | Z107: =Y107/$C107 -> 0% | AB107: =AA107/$C107 -> 0% | AC107: 0
A108: Diretoria Escola de Vela | B108: R$ 593,104.92 | C108: R$ 492,841.00 | E108: =E109+E124 -> 0 | F108: 0% | G108: =G109+G124 -> 0 | H108: 0% | I108: =I109+I124 -> 0 | J108: =I108/$C108 -> 0% | K108: =K109+K124 -> 0 | L108: =K108/$C108 -> 0% | M108: =M109+M124 -> 0 | N108: =M108/$C108 -> 0% | O108: =O109+O124 -> 0 | P108: =O108/$C108 -> 0% | Q108: =Q109+Q124 -> 0 | R108: =Q108/$C108 -> 0% | S108: =S109+S124 -> 0 | T108: =S108/$C108 -> 0% | U108: =U109+U124 -> 0 | V108: =U108/$C108 -> 0% | W108: =W109+W124 -> 0 | X108: =W108/$C108 -> 0% | Y108: =Y109+Y124 -> 0 | Z108: =Y108/$C108 -> 0% | AA108: =AA109+AA124 -> 0 | AB108: =AA108/$C108 -> 0% | AC108: 0
A109: Despesas da Escola de Vela | B109: R$ 593,104.92 | C109: R$ 410,662.01 | E109: =SUM(E110:E123) -> 0 | F109: 0% | G109: =SUM(G110:G123) -> 0 | H109: 0% | I109: =SUM(I110:I123) -> 0 | J109: =I109/$C109 -> 0% | K109: =SUM(K110:K123) -> 0 | L109: =K109/$C109 -> 0% | M109: =SUM(M110:M123) -> 0 | N109: =M109/$C109 -> 0% | O109: =SUM(O110:O123) -> 0 | P109: =O109/$C109 -> 0% | Q109: =SUM(Q110:Q123) -> 0 | R109: =Q109/$C109 -> 0% | S109: =SUM(S110:S123) -> 0 | T109: =S109/$C109 -> 0% | U109: =SUM(U110:U123) -> 0 | V109: =U109/$C109 -> 0% | W109: =SUM(W110:W123) -> 0 | X109: =W109/$C109 -> 0% | Y109: =SUM(Y110:Y123) -> 0 | Z109: =Y109/$C109 -> 0% | AA109: =SUM(AA110:AA123) -> 0 | AB109: =AA109/$C109 -> 0% | AC109: 0
A110: Salários | B110: R$ 155,600.00 | C110: R$ 125,730.81 | F110: 0% | H110: 0% | J110: =I110/$C110 -> 0% | L110: =K110/$C110 -> 0% | N110: =M110/$C110 -> 0% | P110: =O110/$C110 -> 0% | R110: =Q110/$C110 -> 0% | T110: =S110/$C110 -> 0% | V110: =U110/$C110 -> 0% | X110: =W110/$C110 -> 0% | Z110: =Y110/$C110 -> 0% | AB110: =AA110/$C110 -> 0% | AC110: 0
A111: Encargos | B111: R$ 93,500.00 | C111: R$ 43,377.13 | F111: 0% | H111: 0% | J111: =I111/$C111 -> 0% | L111: =K111/$C111 -> 0% | N111: =M111/$C111 -> 0% | P111: =O111/$C111 -> 0% | R111: =Q111/$C111 -> 0% | T111: =S111/$C111 -> 0% | V111: =U111/$C111 -> 0% | X111: =W111/$C111 -> 0% | Z111: =Y111/$C111 -> 0% | AB111: =AA111/$C111 -> 0% | AC111: 0
A112: 13º salario + encargos | B112: R$ 27,500.00 | C112: R$ 14,092.33 | F112: 0% | H112: 0% | J112: =I112/$C112 -> 0% | L112: =K112/$C112 -> 0% | N112: =M112/$C112 -> 0% | P112: =O112/$C112 -> 0% | R112: =Q112/$C112 -> 0% | T112: =S112/$C112 -> 0% | V112: =U112/$C112 -> 0% | X112: =W112/$C112 -> 0% | Z112: =Y112/$C112 -> 0% | AB112: =AA112/$C112 -> 0% | AC112: 0
A113: Gratificações | B113: R$ 5,000.00 | C113: R$ 13,478.88 | F113: 0% | H113: 0% | J113: =I113/$C113 -> 0% | L113: =K113/$C113 -> 0% | N113: =M113/$C113 -> 0% | P113: =O113/$C113 -> 0% | R113: =Q113/$C113 -> 0% | T113: =S113/$C113 -> 0% | V113: =U113/$C113 -> 0% | X113: =W113/$C113 -> 0% | Z113: =Y113/$C113 -> 0% | AB113: =AA113/$C113 -> 0% | AC113: 0
A114: Férias + encargos | B114: R$ 16,377.00 | C114: R$ 4,495.16 | F114: 0% | H114: 0% | J114: =I114/$C114 -> 0% | L114: =K114/$C114 -> 0% | N114: =M114/$C114 -> 0% | P114: =O114/$C114 -> 0% | R114: =Q114/$C114 -> 0% | T114: =S114/$C114 -> 0% | V114: =U114/$C114 -> 0% | X114: =W114/$C114 -> 0% | Z114: =Y114/$C114 -> 0% | AB114: =AA114/$C114 -> 0% | AC114: 0
A115: Rescisões Contratuais | B115: 0 | C115: 0 | J115: =I115/$C115 ->  | L115: =K115/$C115 ->  | N115: =M115/$C115 ->  | P115: =O115/$C115 ->  | R115: =Q115/$C115 ->  | T115: =S115/$C115 ->  | V115: =U115/$C115 ->  | X115: =W115/$C115 ->  | Z115: =Y115/$C115 ->  | AB115: =AA115/$C115 ->  | AC115: 0
A116: Alimentação de funcionários / cesta básica / exames médicos / Vale transporte / | B116: R$ 40,983.54 | C116: R$ 11,500.00 | F116: 0% | H116: 0% | J116: =I116/$C116 -> 0% | L116: =K116/$C116 -> 0% | N116: =M116/$C116 -> 0% | P116: =O116/$C116 -> 0% | R116: =Q116/$C116 -> 0% | T116: =S116/$C116 -> 0% | V116: =U116/$C116 -> 0% | X116: =W116/$C116 -> 0% | Z116: =Y116/$C116 -> 0% | AB116: =AA116/$C116 -> 0% | AC116: 0
A117: Manutenção e Conservação Veleiros da Escola de Vela | B117: R$ 11,950.71 | J117: =I117/$C117 ->  | L117: =K117/$C117 ->  | N117: =M117/$C117 ->  | P117: =O117/$C117 ->  | R117: =Q117/$C117 ->  | T117: =S117/$C117 ->  | V117: =U117/$C117 ->  | X117: =W117/$C117 ->  | Z117: =Y117/$C117 ->  | AB117: =AA117/$C117 ->  | AC117: 0
A118: Combustível (Escola de Vela) - 30% total clube | B118: R$ 18,000.00 | C118: R$ 10,661.45 | F118: 0% | H118: 0% | J118: =I118/$C118 -> 0% | L118: =K118/$C118 -> 0% | N118: =M118/$C118 -> 0% | P118: =O118/$C118 -> 0% | R118: =Q118/$C118 -> 0% | T118: =S118/$C118 -> 0% | V118: =U118/$C118 -> 0% | X118: =W118/$C118 -> 0% | Z118: =Y118/$C118 -> 0% | AB118: =AA118/$C118 -> 0% | AC118: 0
A119: Materiais escola de vela | B119: R$ 5,000.00 | J119: =I119/$C119 ->  | L119: =K119/$C119 ->  | N119: =M119/$C119 ->  | P119: =O119/$C119 ->  | R119: =Q119/$C119 ->  | T119: =S119/$C119 ->  | V119: =U119/$C119 ->  | X119: =W119/$C119 ->  | Z119: =Y119/$C119 ->  | AB119: =AA119/$C119 ->  | AC119: 0
A120: Uniformes escola de vela | B120: R$ 5,000.00 | C120: R$ 1,894.79 | F120: 0% | H120: 0% | J120: =I120/$C120 -> 0% | L120: =K120/$C120 -> 0% | N120: =M120/$C120 -> 0% | P120: =O120/$C120 -> 0% | R120: =Q120/$C120 -> 0% | T120: =S120/$C120 -> 0% | V120: =U120/$C120 -> 0% | X120: =W120/$C120 -> 0% | Z120: =Y120/$C120 -> 0% | AB120: =AA120/$C120 -> 0% | AC120: 0
A121: Prestadores Serviço (autonomos - PJ) | B121: R$ 85,593.68 | C121: R$ 140,761.50 | F121: 0% | H121: 0% | J121: =I121/$C121 -> 0% | L121: =K121/$C121 -> 0% | N121: =M121/$C121 -> 0% | P121: =O121/$C121 -> 0% | R121: =Q121/$C121 -> 0% | T121: =S121/$C121 -> 0% | V121: =U121/$C121 -> 0% | X121: =W121/$C121 -> 0% | Z121: =Y121/$C121 -> 0% | AB121: =AA121/$C121 -> 0% | AC121: 0
A122: Reembolso despesas Prestadores Serviço EV (combustivel, transporte, alimentação, etc....) | C122: R$ 43,200.00 | F122: 0% | H122: 0% | J122: =I122/$C122 -> 0% | L122: =K122/$C122 -> 0% | N122: =M122/$C122 -> 0% | P122: =O122/$C122 -> 0% | R122: =Q122/$C122 -> 0% | T122: =S122/$C122 -> 0% | V122: =U122/$C122 -> 0% | X122: =W122/$C122 -> 0% | Z122: =Y122/$C122 -> 0% | AB122: =AA122/$C122 -> 0% | AC122: 0
A123: Eventos | B123: R$ 600.00 | C123: R$ 1,469.97 | F123: 0% | H123: 0% | J123: =I123/$C123 -> 0% | L123: =K123/$C123 -> 0% | N123: =M123/$C123 -> 0% | P123: =O123/$C123 -> 0% | R123: =Q123/$C123 -> 0% | T123: =S123/$C123 -> 0% | V123: =U123/$C123 -> 0% | X123: =W123/$C123 -> 0% | Z123: =Y123/$C123 -> 0% | AB123: =AA123/$C123 -> 0% | AC123: 0
A124: Despesas Acampamento | C124: R$ 82,178.99 | E124: =E125 -> 0 | F124: 0% | G124: =G125 -> 0 | H124: 0% | I124: =I125 -> 0 | J124: =I124/$C124 -> 0% | K124: =K125 -> 0 | L124: =K124/$C124 -> 0% | M124: =M125 -> 0 | N124: =M124/$C124 -> 0% | O124: =O125 -> 0 | P124: =O124/$C124 -> 0% | Q124: =Q125 -> 0 | R124: =Q124/$C124 -> 0% | S124: =S125 -> 0 | T124: =S124/$C124 -> 0% | U124: =U125 -> 0 | V124: =U124/$C124 -> 0% | W124: =W125 -> 0 | X124: =W124/$C124 -> 0% | Y124: =Y125 -> 0 | Z124: =Y124/$C124 -> 0% | AA124: =AA125 -> 0 | AB124: =AA124/$C124 -> 0% | AC124: 0
A125: Acampamentos Escola de Vela | B125: R$ 123,000.00 | C125: R$ 82,178.99 | F125: 0% | H125: 0% | J125: =I125/$C125 -> 0% | L125: =K125/$C125 -> 0% | N125: =M125/$C125 -> 0% | P125: =O125/$C125 -> 0% | R125: =Q125/$C125 -> 0% | T125: =S125/$C125 -> 0% | V125: =U125/$C125 -> 0% | X125: =W125/$C125 -> 0% | Z125: =Y125/$C125 -> 0% | AB125: =AA125/$C125 -> 0% | AC125: 0
A126: Diretoria de Vela | B126: R$ 1,033,960.96 | C126: R$ 1,398,629.22 | E126: =E127 -> 0 | F126: 0% | G126: =G127 -> 0 | H126: 0% | I126: =I127 -> 0 | J126: =I126/$C126 -> 0% | K126: =K127 -> 0 | L126: =K126/$C126 -> 0% | M126: =M127 -> 0 | N126: =M126/$C126 -> 0% | O126: =O127 -> 0 | P126: =O126/$C126 -> 0% | Q126: =Q127 -> 0 | R126: =Q126/$C126 -> 0% | S126: =S127 -> 0 | T126: =S126/$C126 -> 0% | U126: =U127 -> 0 | V126: =U126/$C126 -> 0% | W126: =W127 -> 0 | X126: =W126/$C126 -> 0% | Y126: =Y127 -> 0 | Z126: =Y126/$C126 -> 0% | AA126: =AA127 -> 0 | AB126: =AA126/$C126 -> 0% | AC126: 0
A127: Despesas | B127: R$ 1,033,960.96 | C127: R$ 1,398,629.22 | E127: =SUM(E128:E154) -> 0 | F127: 0% | G127: =SUM(G128:G154) -> 0 | H127: 0% | I127: =SUM(I128:I154) -> 0 | J127: =I127/$C127 -> 0% | K127: =SUM(K128:K154) -> 0 | L127: =K127/$C127 -> 0% | M127: =SUM(M128:M154) -> 0 | N127: =M127/$C127 -> 0% | O127: =SUM(O128:O154) -> 0 | P127: =O127/$C127 -> 0% | Q127: =SUM(Q128:Q154) -> 0 | R127: =Q127/$C127 -> 0% | S127: =SUM(S128:S154) -> 0 | T127: =S127/$C127 -> 0% | U127: =SUM(U128:U154) -> 0 | V127: =U127/$C127 -> 0% | W127: =SUM(W128:W154) -> 0 | X127: =W127/$C127 -> 0% | Y127: =SUM(Y128:Y154) -> 0 | Z127: =Y127/$C127 -> 0% | AA127: =SUM(AA128:AA154) -> 0 | AB127: =AA127/$C127 -> 0% | AC127: 0
A128: Salários | B128: R$ 108,120.00 | C128: R$ 60,016.44 | F128: 0% | H128: 0% | J128: =I128/$C128 -> 0% | L128: =K128/$C128 -> 0% | N128: =M128/$C128 -> 0% | P128: =O128/$C128 -> 0% | R128: =Q128/$C128 -> 0% | T128: =S128/$C128 -> 0% | V128: =U128/$C128 -> 0% | X128: =W128/$C128 -> 0% | Z128: =Y128/$C128 -> 0% | AB128: =AA128/$C128 -> 0% | AC128: 0
A129: Prestadores Serviço - Diversos | B129: R$ 485,223.05 | C129: R$ 50,000.00 | F129: 0% | H129: 0% | J129: =I129/$C129 -> 0% | L129: =K129/$C129 -> 0% | N129: =M129/$C129 -> 0% | P129: =O129/$C129 -> 0% | R129: =Q129/$C129 -> 0% | T129: =S129/$C129 -> 0% | V129: =U129/$C129 -> 0% | X129: =W129/$C129 -> 0% | Z129: =Y129/$C129 -> 0% | AB129: =AA129/$C129 -> 0% | AC129: 0
A130: Prestadores Serviço - Flotilha OP | C130: R$ 338,868.00 | F130: 0% | H130: 0% | J130: =I130/$C130 -> 0% | L130: =K130/$C130 -> 0% | N130: =M130/$C130 -> 0% | P130: =O130/$C130 -> 0% | R130: =Q130/$C130 -> 0% | T130: =S130/$C130 -> 0% | V130: =U130/$C130 -> 0% | X130: =W130/$C130 -> 0% | Z130: =Y130/$C130 -> 0% | AB130: =AA130/$C130 -> 0% | AC130: 0
A131: Despesas - Flotilha OP | C131: R$ 90,000.00 | F131: 0% | H131: 0% | J131: =I131/$C131 -> 0% | L131: =K131/$C131 -> 0% | N131: =M131/$C131 -> 0% | P131: =O131/$C131 -> 0% | R131: =Q131/$C131 -> 0% | T131: =S131/$C131 -> 0% | V131: =U131/$C131 -> 0% | X131: =W131/$C131 -> 0% | Z131: =Y131/$C131 -> 0% | AB131: =AA131/$C131 -> 0% | AC131: 0
A132: Prestadores Serviço - Flotilha Ilca | C132: R$ 143,457.60 | F132: 0% | H132: 0% | J132: =I132/$C132 -> 0% | L132: =K132/$C132 -> 0% | N132: =M132/$C132 -> 0% | P132: =O132/$C132 -> 0% | R132: =Q132/$C132 -> 0% | T132: =S132/$C132 -> 0% | V132: =U132/$C132 -> 0% | X132: =W132/$C132 -> 0% | Z132: =Y132/$C132 -> 0% | AB132: =AA132/$C132 -> 0% | AC132: 0
A133: Despesas - Flotilha Ilca | C133: R$ 35,864.40 | F133: 0% | H133: 0% | J133: =I133/$C133 -> 0% | L133: =K133/$C133 -> 0% | N133: =M133/$C133 -> 0% | P133: =O133/$C133 -> 0% | R133: =Q133/$C133 -> 0% | T133: =S133/$C133 -> 0% | V133: =U133/$C133 -> 0% | X133: =W133/$C133 -> 0% | Z133: =Y133/$C133 -> 0% | AB133: =AA133/$C133 -> 0% | AC133: 0
A134: Prestadores Serviço - Flotilha 420 | C134: R$ 48,153.60 | F134: 0% | H134: 0% | J134: =I134/$C134 -> 0% | L134: =K134/$C134 -> 0% | N134: =M134/$C134 -> 0% | P134: =O134/$C134 -> 0% | R134: =Q134/$C134 -> 0% | T134: =S134/$C134 -> 0% | V134: =U134/$C134 -> 0% | X134: =W134/$C134 -> 0% | Z134: =Y134/$C134 -> 0% | AB134: =AA134/$C134 -> 0% | AC134: 0
A135: Despesas - Flotilha 420 | C135: R$ 12,038.40 | F135: 0% | H135: 0% | J135: =I135/$C135 -> 0% | L135: =K135/$C135 -> 0% | N135: =M135/$C135 -> 0% | P135: =O135/$C135 -> 0% | R135: =Q135/$C135 -> 0% | T135: =S135/$C135 -> 0% | V135: =U135/$C135 -> 0% | X135: =W135/$C135 -> 0% | Z135: =Y135/$C135 -> 0% | AB135: =AA135/$C135 -> 0% | AC135: 0
A136: Encargos | B136: R$ 45,408.00 | C136: R$ 20,705.67 | F136: =E136/C136 -> 0% | H136: =G136/$C136 -> 0% | J136: =I136/$C136 -> 0% | L136: =K136/$C136 -> 0% | N136: =M136/$C136 -> 0% | P136: =O136/$C136 -> 0% | R136: =Q136/$C136 -> 0% | T136: =S136/$C136 -> 0% | V136: =U136/$C136 -> 0% | X136: =W136/$C136 -> 0% | Z136: =Y136/$C136 -> 0% | AB136: =AA136/$C136 -> 0% | AC136: =E136+G136+I136+K136+M136+O136+Q136+S136+U136+W136+Y136+AA136 -> 0
A137: Férias + encargos | B137: R$ 7,268.00 | C137: R$ 2,145.72 | F137: 0% | H137: 0% | J137: =I137/$C137 -> 0% | L137: =K137/$C137 -> 0% | N137: =M137/$C137 -> 0% | P137: =O137/$C137 -> 0% | R137: =Q137/$C137 -> 0% | T137: =S137/$C137 -> 0% | V137: =U137/$C137 -> 0% | X137: =W137/$C137 -> 0% | Z137: =Y137/$C137 -> 0% | AB137: =AA137/$C137 -> 0% | AC137: 0
A138: 13º salario + encargos | B138: R$ 12,208.00 | C138: R$ 6,726.84 | F138: 0% | H138: 0% | J138: =I138/$C138 -> 0% | L138: =K138/$C138 -> 0% | N138: =M138/$C138 -> 0% | P138: =O138/$C138 -> 0% | R138: =Q138/$C138 -> 0% | T138: =S138/$C138 -> 0% | V138: =U138/$C138 -> 0% | X138: =W138/$C138 -> 0% | Z138: =Y138/$C138 -> 0% | AB138: =AA138/$C138 -> 0% | AC138: 0
A139: Alimentação funcionários / cesta básica | B139: R$ 19,647.34 | C139: R$ 24,201.11 | F139: 0% | H139: 0% | J139: =I139/$C139 -> 0% | L139: =K139/$C139 -> 0% | N139: =M139/$C139 -> 0% | P139: =O139/$C139 -> 0% | R139: =Q139/$C139 -> 0% | T139: =S139/$C139 -> 0% | V139: =U139/$C139 -> 0% | X139: =W139/$C139 -> 0% | Z139: =Y139/$C139 -> 0% | AB139: =AA139/$C139 -> 0% | AC139: 0
A140: Eventos Náuticos (prêmios, juria) | B140: R$ 161,377.42 | C140: R$ 179,184.67 | F140: 0% | H140: 0% | J140: =I140/$C140 -> 0% | L140: =K140/$C140 -> 0% | N140: =M140/$C140 -> 0% | P140: =O140/$C140 -> 0% | R140: =Q140/$C140 -> 0% | T140: =S140/$C140 -> 0% | V140: =U140/$C140 -> 0% | X140: =W140/$C140 -> 0% | Z140: =Y140/$C140 -> 0% | AB140: =AA140/$C140 -> 0% | AC140: 0
A141: Viagens/estadias | B141: R$ 4,847.93 | C141: R$ 39,520.92 | F141: 0% | H141: 0% | J141: =I141/$C141 -> 0% | L141: =K141/$C141 -> 0% | N141: =M141/$C141 -> 0% | P141: =O141/$C141 -> 0% | R141: =Q141/$C141 -> 0% | T141: =S141/$C141 -> 0% | V141: =U141/$C141 -> 0% | X141: =W141/$C141 -> 0% | Z141: =Y141/$C141 -> 0% | AB141: =AA141/$C141 -> 0% | AC141: 0
A142: Combustivel para campeonatos e treinos da flotilha e fretes | B142: R$ 43,000.00 | C142: R$ 48,117.81 | F142: 0% | H142: 0% | J142: =I142/$C142 -> 0% | L142: =K142/$C142 -> 0% | N142: =M142/$C142 -> 0% | P142: =O142/$C142 -> 0% | R142: =Q142/$C142 -> 0% | T142: =S142/$C142 -> 0% | V142: =U142/$C142 -> 0% | X142: =W142/$C142 -> 0% | Z142: =Y142/$C142 -> 0% | AB142: =AA142/$C142 -> 0% | AC142: 0
A143: Troféus e Prêmios | B143: R$ 12,471.96 | C143: R$ 5,178.32 | F143: 0% | H143: 0% | J143: =I143/$C143 -> 0% | L143: =K143/$C143 -> 0% | N143: =M143/$C143 -> 0% | P143: =O143/$C143 -> 0% | R143: =Q143/$C143 -> 0% | T143: =S143/$C143 -> 0% | V143: =U143/$C143 -> 0% | X143: =W143/$C143 -> 0% | Z143: =Y143/$C143 -> 0% | AB143: =AA143/$C143 -> 0% | AC143: 0
A144: FEVESP | B144: R$ 12,720.00 | C144: R$ 12,540.00 | F144: 0% | H144: 0% | J144: =I144/$C144 -> 0% | L144: =K144/$C144 -> 0% | N144: =M144/$C144 -> 0% | P144: =O144/$C144 -> 0% | R144: =Q144/$C144 -> 0% | T144: =S144/$C144 -> 0% | V144: =U144/$C144 -> 0% | X144: =W144/$C144 -> 0% | Z144: =Y144/$C144 -> 0% | AB144: =AA144/$C144 -> 0% | AC144: 0
A145: FENACLUBES | B145: R$ 53,449.44 | C145: R$ 57,107.16 | F145: 0% | H145: 0% | J145: =I145/$C145 -> 0% | L145: =K145/$C145 -> 0% | N145: =M145/$C145 -> 0% | P145: =O145/$C145 -> 0% | R145: =Q145/$C145 -> 0% | T145: =S145/$C145 -> 0% | V145: =U145/$C145 -> 0% | X145: =W145/$C145 -> 0% | Z145: =Y145/$C145 -> 0% | AB145: =AA145/$C145 -> 0% | AC145: 0
A146: CBC | B146: R$ 19,410.72 | C146: R$ 20,716.08 | F146: 0% | H146: 0% | J146: =I146/$C146 -> 0% | L146: =K146/$C146 -> 0% | N146: =M146/$C146 -> 0% | P146: =O146/$C146 -> 0% | R146: =Q146/$C146 -> 0% | T146: =S146/$C146 -> 0% | V146: =U146/$C146 -> 0% | X146: =W146/$C146 -> 0% | Z146: =Y146/$C146 -> 0% | AB146: =AA146/$C146 -> 0% | AC146: 0
A147: CBVela | C147: R$ 3,135.00 | F147: 0% | H147: 0% | J147: =I147/$C147 -> 0% | L147: =K147/$C147 -> 0% | N147: =M147/$C147 -> 0% | P147: =O147/$C147 -> 0% | R147: =Q147/$C147 -> 0% | T147: =S147/$C147 -> 0% | V147: =U147/$C147 -> 0% | X147: =W147/$C147 -> 0% | Z147: =Y147/$C147 -> 0% | AB147: =AA147/$C147 -> 0% | AC147: 0
A148: Manutenção botes | B148: R$ 112,389.26 | C148: R$ 85,000.00 | F148: 0% | H148: 0% | J148: =I148/$C148 -> 0% | L148: =K148/$C148 -> 0% | N148: =M148/$C148 -> 0% | P148: =O148/$C148 -> 0% | R148: =Q148/$C148 -> 0% | T148: =S148/$C148 -> 0% | V148: =U148/$C148 -> 0% | X148: =W148/$C148 -> 0% | Z148: =Y148/$C148 -> 0% | AB148: =AA148/$C148 -> 0% | AC148: 0
A149: Manutenção botes escola de vela | C149: R$ 15,000.00 | F149: 0% | H149: 0% | J149: =I149/$C149 -> 0% | L149: =K149/$C149 -> 0% | N149: =M149/$C149 -> 0% | P149: =O149/$C149 -> 0% | R149: =Q149/$C149 -> 0% | T149: =S149/$C149 -> 0% | V149: =U149/$C149 -> 0% | X149: =W149/$C149 -> 0% | Z149: =Y149/$C149 -> 0% | AB149: =AA149/$C149 -> 0% | AC149: 0
A150: Manutenção lanchas | C150: R$ 25,000.00 | F150: 0% | H150: 0% | J150: =I150/$C150 -> 0% | L150: =K150/$C150 -> 0% | N150: =M150/$C150 -> 0% | P150: =O150/$C150 -> 0% | R150: =Q150/$C150 -> 0% | T150: =S150/$C150 -> 0% | V150: =U150/$C150 -> 0% | X150: =W150/$C150 -> 0% | Z150: =Y150/$C150 -> 0% | AB150: =AA150/$C150 -> 0% | AC150: 0
A151: Manutenção veleiros competição | C151: R$ 35,000.00 | F151: 0% | H151: 0% | J151: =I151/$C151 -> 0% | L151: =K151/$C151 -> 0% | N151: =M151/$C151 -> 0% | P151: =O151/$C151 -> 0% | R151: =Q151/$C151 -> 0% | T151: =S151/$C151 -> 0% | V151: =U151/$C151 -> 0% | X151: =W151/$C151 -> 0% | Z151: =Y151/$C151 -> 0% | AB151: =AA151/$C151 -> 0% | AC151: 0
A152: Manutenção Veleiros escola de vela | B152: R$ 11,950.71 | C152: R$ 25,000.00 | F152: 0% | H152: 0% | J152: =I152/$C152 -> 0% | L152: =K152/$C152 -> 0% | N152: =M152/$C152 -> 0% | P152: =O152/$C152 -> 0% | R152: =Q152/$C152 -> 0% | T152: =S152/$C152 -> 0% | V152: =U152/$C152 -> 0% | X152: =W152/$C152 -> 0% | Z152: =Y152/$C152 -> 0% | AB152: =AA152/$C152 -> 0% | AC152: 0
A153: Materiais Veleiros escola de vela | B153: R$ 5,000.00 | C153: R$ 10,688.68 | F153: 0% | H153: 0% | J153: =I153/$C153 -> 0% | L153: =K153/$C153 -> 0% | N153: =M153/$C153 -> 0% | P153: =O153/$C153 -> 0% | R153: =Q153/$C153 -> 0% | T153: =S153/$C153 -> 0% | V153: =U153/$C153 -> 0% | X153: =W153/$C153 -> 0% | Z153: =Y153/$C153 -> 0% | AB153: =AA153/$C153 -> 0% | AC153: 0
A154: Uniformes e Adesivos Equip Vela | B154: R$ 22,000.00 | C154: R$ 5,262.79 | F154: 0% | H154: 0% | J154: =I154/$C154 -> 0% | L154: =K154/$C154 -> 0% | N154: =M154/$C154 -> 0% | P154: =O154/$C154 -> 0% | R154: =Q154/$C154 -> 0% | T154: =S154/$C154 -> 0% | V154: =U154/$C154 -> 0% | X154: =W154/$C154 -> 0% | Z154: =Y154/$C154 -> 0% | AB154: =AA154/$C154 -> 0% | AC154: 0
A155: Diretoria de Sustentabilidade | B155: 0 | C155: 0 | E155: 0 | G155: 0 | I155: 0 | J155: =I155/$C155 ->  | K155: 0 | L155: =K155/$C155 ->  | M155: 0 | N155: =M155/$C155 ->  | O155: 0 | P155: =O155/$C155 ->  | Q155: 0 | R155: =Q155/$C155 ->  | S155: 0 | T155: =S155/$C155 ->  | U155: 0 | V155: =U155/$C155 ->  | W155: 0 | X155: =W155/$C155 ->  | Y155: 0 | Z155: =Y155/$C155 ->  | AA155: 0 | AB155: =AA155/$C155 ->  | AC155: 0
A156: Despesas de sustentabilidade | B156: 0 | C156: 0 | E156: 0 | G156: 0 | I156: 0 | J156: =I156/$C156 ->  | K156: 0 | L156: =K156/$C156 ->  | M156: 0 | N156: =M156/$C156 ->  | O156: 0 | P156: =O156/$C156 ->  | Q156: 0 | R156: =Q156/$C156 ->  | S156: 0 | T156: =S156/$C156 ->  | U156: 0 | V156: =U156/$C156 ->  | W156: 0 | X156: =W156/$C156 ->  | Y156: 0 | Z156: =Y156/$C156 ->  | AA156: 0 | AB156: =AA156/$C156 ->  | AC156: 0
A157: Ações de sustentabilidade | B157: 0 | C157: 0 | E157: 0 | G157: 0 | I157: 0 | J157: =I157/$C157 ->  | K157: 0 | L157: =K157/$C157 ->  | M157: 0 | N157: =M157/$C157 ->  | O157: 0 | P157: =O157/$C157 ->  | Q157: 0 | R157: =Q157/$C157 ->  | S157: 0 | T157: =S157/$C157 ->  | U157: 0 | V157: =U157/$C157 ->  | W157: 0 | X157: =W157/$C157 ->  | Y157: 0 | Z157: =Y157/$C157 ->  | AA157: 0 | AB157: =AA157/$C157 ->  | AC157: 0
A158: Diretoria de Patrimônio | B158: R$ 175,000.00 | C158: R$ 269,665.97 | E158: =E159 -> 0 | F158: 0% | G158: =G159 -> 0 | H158: 0% | I158: =I159 -> 0 | J158: =I158/$C158 -> 0% | K158: =K159 -> 0 | L158: =K158/$C158 -> 0% | M158: =M159 -> 0 | N158: =M158/$C158 -> 0% | O158: =O159 -> 0 | P158: =O158/$C158 -> 0% | Q158: =Q159 -> 0 | R158: =Q158/$C158 -> 0% | S158: =S159 -> 0 | T158: =S158/$C158 -> 0% | U158: =U159 -> 0 | V158: =U158/$C158 -> 0% | W158: =W159 -> 0 | X158: =W158/$C158 -> 0% | Y158: =Y159 -> 0 | Z158: =Y158/$C158 -> 0% | AA158: =AA159 -> 0 | AB158: =AA158/$C158 -> 0% | AC158: 0
A159: Manutenção e Conservação de Instalações | B159: R$ 175,000.00 | C159: R$ 269,665.97 | E159: =SUM(E160:E164) -> 0 | F159: 0% | G159: =SUM(G160:G164) -> 0 | H159: 0% | I159: =SUM(I160:I164) -> 0 | J159: =I159/$C159 -> 0% | K159: =SUM(K160:K164) -> 0 | L159: =K159/$C159 -> 0% | M159: =SUM(M160:M164) -> 0 | N159: =M159/$C159 -> 0% | O159: =SUM(O160:O164) -> 0 | P159: =O159/$C159 -> 0% | Q159: =SUM(Q160:Q164) -> 0 | R159: =Q159/$C159 -> 0% | S159: =SUM(S160:S164) -> 0 | T159: =S159/$C159 -> 0% | U159: =SUM(U160:U164) -> 0 | V159: =U159/$C159 -> 0% | W159: =SUM(W160:W164) -> 0 | X159: =W159/$C159 -> 0% | Y159: =SUM(Y160:Y164) -> 0 | Z159: =Y159/$C159 -> 0% | AA159: =SUM(AA160:AA164) -> 0 | AB159: =AA159/$C159 -> 0% | AC159: 0
A160: Manutenção e Conservação Piscina | B160: R$ 15,000.00 | C160: R$ 36,782.61 | F160: 0% | H160: 0% | J160: =I160/$C160 -> 0% | L160: =K160/$C160 -> 0% | N160: =M160/$C160 -> 0% | P160: =O160/$C160 -> 0% | R160: =Q160/$C160 -> 0% | T160: =S160/$C160 -> 0% | V160: =U160/$C160 -> 0% | X160: =W160/$C160 -> 0% | Z160: =Y160/$C160 -> 0% | AB160: =AA160/$C160 -> 0% | AC160: 0
A161: Manutenção e Conservação Edifícios, Muros, Cercas, etc | B161: R$ 100,000.00 | C161: R$ 141,667.72 | F161: 0% | H161: 0% | J161: =I161/$C161 -> 0% | L161: =K161/$C161 -> 0% | N161: =M161/$C161 -> 0% | P161: =O161/$C161 -> 0% | R161: =Q161/$C161 -> 0% | T161: =S161/$C161 -> 0% | V161: =U161/$C161 -> 0% | X161: =W161/$C161 -> 0% | Z161: =Y161/$C161 -> 0% | AB161: =AA161/$C161 -> 0% | AC161: 0
A162: Manuteção Hidráulica & Elétrica | B162: R$ 15,000.00 | C162: R$ 27,962.04 | F162: 0% | H162: 0% | J162: =I162/$C162 -> 0% | L162: =K162/$C162 -> 0% | N162: =M162/$C162 -> 0% | P162: =O162/$C162 -> 0% | R162: =Q162/$C162 -> 0% | T162: =S162/$C162 -> 0% | V162: =U162/$C162 -> 0% | X162: =W162/$C162 -> 0% | Z162: =Y162/$C162 -> 0% | AB162: =AA162/$C162 -> 0% | AC162: 0
A163: Manutenção e Conservação Jardins | B163: R$ 30,000.00 | C163: R$ 1,532.39 | F163: 0% | H163: 0% | J163: =I163/$C163 -> 0% | L163: =K163/$C163 -> 0% | N163: =M163/$C163 -> 0% | P163: =O163/$C163 -> 0% | R163: =Q163/$C163 -> 0% | T163: =S163/$C163 -> 0% | V163: =U163/$C163 -> 0% | X163: =W163/$C163 -> 0% | Z163: =Y163/$C163 -> 0% | AB163: =AA163/$C163 -> 0% | AC163: 0
A164: Manutenção de Eqtos (exceto náutica) | B164: R$ 15,000.00 | C164: R$ 61,721.21 | F164: 0% | H164: 0% | J164: =I164/$C164 -> 0% | L164: =K164/$C164 -> 0% | N164: =M164/$C164 -> 0% | P164: =O164/$C164 -> 0% | R164: =Q164/$C164 -> 0% | T164: =S164/$C164 -> 0% | V164: =U164/$C164 -> 0% | X164: =W164/$C164 -> 0% | Z164: =Y164/$C164 -> 0% | AB164: =AA164/$C164 -> 0% | AC164: 0
A165: Impostos e Taxas | B165: R$ 33,019.67 | C165: R$ 34,855.03 | E165: =SUM(E166:E168) -> 0 | F165: 0% | G165: =SUM(G166:G168) -> 0 | H165: 0% | I165: =SUM(I166:I168) -> 0 | J165: =I165/$C165 -> 0% | K165: =SUM(K166:K168) -> 0 | L165: =K165/$C165 -> 0% | M165: =SUM(M166:M168) -> 0 | N165: =M165/$C165 -> 0% | O165: =SUM(O166:O168) -> 0 | P165: =O165/$C165 -> 0% | Q165: =SUM(Q166:Q168) -> 0 | R165: =Q165/$C165 -> 0% | S165: =SUM(S166:S168) -> 0 | T165: =S165/$C165 -> 0% | U165: =SUM(U166:U168) -> 0 | V165: =U165/$C165 -> 0% | W165: =SUM(W166:W168) -> 0 | X165: =W165/$C165 -> 0% | Y165: =SUM(Y166:Y168) -> 0 | Z165: =Y165/$C165 -> 0% | AA165: =SUM(AA166:AA168) -> 0 | AB165: =AA165/$C165 -> 0% | AC165: 0
A166: Tributos e Taxas Municipais | B166: R$ 5,000.00 | C166: R$ 7,790.88 | F166: 0% | H166: 0% | J166: =I166/$C166 -> 0% | L166: =K166/$C166 -> 0% | N166: =M166/$C166 -> 0% | P166: =O166/$C166 -> 0% | R166: =Q166/$C166 -> 0% | T166: =S166/$C166 -> 0% | V166: =U166/$C166 -> 0% | X166: =W166/$C166 -> 0% | Z166: =Y166/$C166 -> 0% | AB166: =AA166/$C166 -> 0% | AC166: 0
A167: Despesas Bancárias | B167: R$ 25,519.67 | C167: R$ 25,897.83 | F167: 0% | H167: 0% | J167: =I167/$C167 -> 0% | L167: =K167/$C167 -> 0% | N167: =M167/$C167 -> 0% | P167: =O167/$C167 -> 0% | R167: =Q167/$C167 -> 0% | T167: =S167/$C167 -> 0% | V167: =U167/$C167 -> 0% | X167: =W167/$C167 -> 0% | Z167: =Y167/$C167 -> 0% | AB167: =AA167/$C167 -> 0% | AC167: 0
A168: PIS/COFINS | B168: R$ 2,500.00 | C168: R$ 1,166.32 | F168: 0% | H168: 0% | J168: =I168/$C168 -> 0% | L168: =K168/$C168 -> 0% | N168: =M168/$C168 -> 0% | P168: =O168/$C168 -> 0% | R168: =Q168/$C168 -> 0% | T168: =S168/$C168 -> 0% | V168: =U168/$C168 -> 0% | X168: =W168/$C168 -> 0% | Z168: =Y168/$C168 -> 0% | AB168: =AA168/$C168 -> 0% | AC168: 0
A169: FUNDO PRÓ-VELA | C169: R$ 166,030.34 | E169: =(E10+E11)*0.06 -> 0 | F169: 0% | G169: =(G10+G11)*0.06 -> 0 | H169: 0% | I169: =(I10+I11)*0.06 -> 0 | J169: =I169/$C169 -> 0% | K169: =(K10+K11)*0.06 -> 0 | L169: =K169/$C169 -> 0% | M169: =(M10+M11)*0.06 -> 0 | N169: =M169/$C169 -> 0% | O169: =(O10+O11)*0.06 -> 0 | P169: =O169/$C169 -> 0% | Q169: =(Q10+Q11)*0.06 -> 0 | R169: =Q169/$C169 -> 0% | S169: =(S10+S11)*0.06 -> 0 | T169: =S169/$C169 -> 0% | U169: =(U10+U11)*0.06 -> 0 | V169: =U169/$C169 -> 0% | W169: =(W10+W11)*0.06 -> 0 | X169: =W169/$C169 -> 0% | Y169: =(Y10+Y11)*0.06 -> 0 | Z169: =Y169/$C169 -> 0% | AA169: =(AA10+AA11)*0.06 -> 0 | AB169: =AA169/$C169 -> 0% | AC169: 0
A170: Reembolso gastos FPV | C170: R$ 95,000.00 | F170: 0% | H170: 0% | J170: =I170/$C170 -> 0% | L170: =K170/$C170 -> 0% | N170: =M170/$C170 -> 0% | P170: =O170/$C170 -> 0% | R170: =Q170/$C170 -> 0% | T170: =S170/$C170 -> 0% | V170: =U170/$C170 -> 0% | X170: =W170/$C170 -> 0% | Z170: =Y170/$C170 -> 0% | AB170: =AA170/$C170 -> 0% | AC170: 0
A171: Outros - a ser definido pelo FPV | C171: R$ 71,030.34 | F171: 0% | H171: 0% | J171: =I171/$C171 -> 0% | L171: =K171/$C171 -> 0% | N171: =M171/$C171 -> 0% | P171: =O171/$C171 -> 0% | R171: =Q171/$C171 -> 0% | T171: =S171/$C171 -> 0% | V171: =U171/$C171 -> 0% | X171: =W171/$C171 -> 0% | Z171: =Y171/$C171 -> 0% | AB171: =AA171/$C171 -> 0% | AC171: 0
